Department Family,Entity,Date,Expense Type,Expense Area,Supplier,Transaction Number,Amount In Sterling
"Department for Business, Innovation and Skills","Department for Business, Innovation and Skills",12/05/10,Payments to Barclays for Carlson Wagonlit Travel Contract,Finance & Commercial Group - Finance Group,INITIAL CATERING SERVICES LTD T/A AUTOGRAPH,994489,1372.69375
"Department for Business, Innovation and Skills","Department for Business, Innovation and Skills",12/05/10,Other IT Costs (Programme),Business Group - Information Economy,JEAN GOUGH,995279,579
"Department for Business, Innovation and Skills","Department for Business, Innovation and Skills",12/05/10,Media and Design Services,SCIENCE & RESEARCH GROUP - UK Space Agency,FOLIO CREATIVE COMMUNICATION,995211,2250
"Department for Business, Innovation and Skills","Department for Business, Innovation and Skills",12/05/10,Grants - Statutory - Current - Other,SCIENCE & RESEARCH GROUP - UK Space Agency,NEW LINE LEARNING,995215,-870
"Department for Business, Innovation and Skills","Department for Business, Innovation and Skills",12/05/10,Grants - Statutory - Current - Other,SCIENCE & RESEARCH GROUP - UK Space Agency,NEW LINE LEARNING,995215,870
"Department for Business, Innovation and Skills","Department for Business, Innovation and Skills",12/05/10,Grants - Statutory - Current - Other,SCIENCE & RESEARCH GROUP - UK Space Agency,NEW LINE LEARNING,995215,870
"Department for Business, Innovation and Skills","Department for Business, Innovation and Skills",12/05/10,Additions - Enterprise Equity Investments,"Innovation, Enterprise & Better Regulation Executive - Enterprise Directorate",BERR EQUITY INVESTMENT PROGRAMMES (CAPITAL),995470,120000
"Department for Business, Innovation and Skills","Department for Business, Innovation and Skills",12/05/10,Additions - Enterprise Equity Investments,"Innovation, Enterprise & Better Regulation Executive - Enterprise Directorate",BERR EQUITY INVESTMENT PROGRAMMES (CAPITAL),995469,492545.98
"Department for Business, Innovation and Skills","Department for Business, Innovation and Skills",12/05/10,Economic Consultancy and Research,Universities and Skills Group - Further Education,CAMPBELL ESQ. LTD,995398,5000
"Department for Business, Innovation and Skills","Department for Business, Innovation and Skills",12/05/10,Economic Consultancy and Research,Universities and Skills Group - Further Education,JEREMY LEE ASSOCIATES LTD (JLA),995404,5000
"Department for Business, Innovation and Skills","Department for Business, Innovation and Skills",12/05/10,Grants - Statutory - Current - Abroad,Universities and Skills Group - Learners,EUROPEAN UNIVERSITY INSTITUTE (EUI),994528,-4784.90364
"Department for Business, Innovation and Skills","Department for Business, Innovation and Skills",12/05/10,Grants - Statutory - Current - Abroad,Universities and Skills Group - Learners,EUROPEAN UNIVERSITY INSTITUTE (EUI),994528,4784.90364
"Department for Business, Innovation and Skills","Department for Business, Innovation and Skills",12/05/10,Grants - Statutory - Current - Abroad,Universities and Skills Group - Learners,EUROPEAN UNIVERSITY INSTITUTE (EUI),994528,4784.90364
"Department for Business, Innovation and Skills","Department for Business, Innovation and Skills",12/05/10,Criminal Law and Prosecution Work,"Legal, People & Communications Group - Legal",RICHARD COLE,995335,746.125
"Department for Business, Innovation and Skills","Department for Business, Innovation and Skills",12/05/10,Criminal Law and Prosecution Work,"Legal, People & Communications Group - Legal",WACE MORGAN SOLICITORS,995318,1207.2655
"Department for Business, Innovation and Skills","Department for Business, Innovation and Skills",12/05/10,Criminal Law and Prosecution Work,"Legal, People & Communications Group - Legal",CARPE-DATUM,995343,4030.25
"Department for Business, Innovation and Skills","Department for Business, Innovation and Skills",12/05/10,Criminal Law and Prosecution Work,"Legal, People & Communications Group - Legal",EXPERIAN LTD,995297,1104.265
"Department for Business, Innovation and Skills","Department for Business, Innovation and Skills",12/05/10,Criminal Law and Prosecution Work,"Legal, People & Communications Group - Legal",KJB Partners Ltd,995333,2117.35
"Department for Business, Innovation and Skills","Department for Business, Innovation and Skills",12/05/10,Criminal Law and Prosecution Work,"Legal, People & Communications Group - Legal",KJB Partners Ltd,995328,2846.32
"Department for Business, Innovation and Skills","Department for Business, Innovation and Skills",12/05/10,Criminal Law and Prosecution Work,"Legal, People & Communications Group - Legal",KJB Partners Ltd,995330,3588.48525
"Department for Business, Innovation and Skills","Department for Business, Innovation and Skills",12/05/10,Criminal Law and Prosecution Work,"Legal, People & Communications Group - Legal",MENDIP MEDIA GROUP LTD,995312,770
"Department for Business, Innovation and Skills","Department for Business, Innovation and Skills",12/05/10,Criminal Law and Prosecution Work,"Legal, People & Communications Group - Legal",RSM TENON LTD,995288,23073.76875
"Department for Business, Innovation and Skills","Department for Business, Innovation and Skills",12/05/10,Criminal Law and Prosecution Work,"Legal, People & Communications Group - Legal",RSM TENON LTD,995286,35212.55275
"Department for Business, Innovation and Skills","Department for Business, Innovation and Skills",12/05/10,Criminal Law and Prosecution Work,"Legal, People & Communications Group - Legal",WACE MORGAN SOLICITORS,995317,1694.05625
"Department for Business, Innovation and Skills","Department for Business, Innovation and Skills",12/05/10,Capital Grants - Other,"Business Group - Solutions for Business, Low Carbon & Services",ONE NORTH EAST,995433,47095.2
"Department for Business, Innovation and Skills","Department for Business, Innovation and Skills",12/05/10,Capital Grants - Other,"Business Group - Solutions for Business, Low Carbon & Services",ONE NORTH EAST,995431,80092.56
"Department for Business, Innovation and Skills","Department for Business, Innovation and Skills",12/05/10,Capital Grants - Other,"Business Group - Solutions for Business, Low Carbon & Services",ONE NORTH EAST,995429,92047.83
"Department for Business, Innovation and Skills","Department for Business, Innovation and Skills",12/05/10,Capital Grants - Other,"Business Group - Solutions for Business, Low Carbon & Services",ONE NORTH EAST,995432,107069.67
"Department for Business, Innovation and Skills","Department for Business, Innovation and Skills",12/05/10,Capital Grants - Other,"Business Group - Solutions for Business, Low Carbon & Services",ONE NORTH EAST,995428,132934.42
"Department for Business, Innovation and Skills","Department for Business, Innovation and Skills",12/05/10,Capital Grants - Other,"Business Group - Solutions for Business, Low Carbon & Services",ONE NORTH EAST,995430,137108.72
"Department for Business, Innovation and Skills","Department for Business, Innovation and Skills",12/05/10,Capital Grants - Other,"Business Group - Solutions for Business, Low Carbon & Services",ONE NORTH EAST,995426,2603651.6
"Department for Business, Innovation and Skills","Department for Business, Innovation and Skills",12/05/10,Outsourced Programme Management Services,"Legal, People & Communications Group - Communications Directorate",BADENOCH AND CLARK LTD,994680,730.1215
"Department for Business, Innovation and Skills","Department for Business, Innovation and Skills",12/05/10,Hotels Overseas,Fair Markets Group Summary - ECO,"Personal Expense, Name Witheld",10269153,1549.53
"Department for Business, Innovation and Skills","Department for Business, Innovation and Skills",12/05/10,Subsistence Payments Overseas,Fair Markets Group Summary - ECO,"Personal Expense, Name Witheld",10269153,829.9
"Department for Business, Innovation and Skills","Department for Business, Innovation and Skills",12/05/10,Car Hire and Leasing,Fair Markets Group Summary - ECO,"Personal Expense, Name Witheld",10269153,1008.36
"Department for Business, Innovation and Skills","Department for Business, Innovation and Skills",12/05/10,Telecommunications,Universities and Skills Group - USG Admin,PREMIERE GLOBAL SERVICES,994984,-106.69
"Department for Business, Innovation and Skills","Department for Business, Innovation and Skills",12/05/10,Taxis,Universities and Skills Group - USG Admin,RADIO TAXIS GROUP LTD,995251,-235.517
"Department for Business, Innovation and Skills","Department for Business, Innovation and Skills",12/05/10,Security Policy Service,Finance & Commercial Group - Information and Workplace Strategies,DISCLOSURE SCOTLAND,995361,529
"Department for Business, Innovation and Skills","Department for Business, Innovation and Skills",12/05/10,Accommodation Rentals,Finance & Commercial Group - Information and Workplace Strategies,DWP (DEPARTMENT FOR WORK AND PENSIONS),995427,7669.65
"Department for Business, Innovation and Skills","Department for Business, Innovation and Skills",12/05/10,Rates,Finance & Commercial Group - Information and Workplace Strategies,DWP (DEPARTMENT FOR WORK AND PENSIONS),995434,3028.65
"Department for Business, Innovation and Skills","Department for Business, Innovation and Skills",12/05/10,Service Charges,Finance & Commercial Group - Information and Workplace Strategies,DWP (DEPARTMENT FOR WORK AND PENSIONS),995427,-7669.65
"Department for Business, Innovation and Skills","Department for Business, Innovation and Skills",12/05/10,Service Charges,Finance & Commercial Group - Information and Workplace Strategies,DWP (DEPARTMENT FOR WORK AND PENSIONS),995427,769.34
"Department for Business, Innovation and Skills","Department for Business, Innovation and Skills",12/05/10,Service Charges,Finance & Commercial Group - Information and Workplace Strategies,DWP (DEPARTMENT FOR WORK AND PENSIONS),995427,7669.65
"Department for Business, Innovation and Skills","Department for Business, Innovation and Skills",12/05/10,Service Charges,Finance & Commercial Group - Information and Workplace Strategies,NATIONAL MEASUREMENT OFFICE,995438,2533.44
"Department for Business, Innovation and Skills","Department for Business, Innovation and Skills",12/05/10,ICT Maintenance & Upkeep,Finance & Commercial Group - Information and Workplace Strategies,PARITY RESOURCES LTD,995157,5060
"Department for Business, Innovation and Skills","Department for Business, Innovation and Skills",12/05/10,ICT Maintenance & Upkeep,Finance & Commercial Group - Information and Workplace Strategies,SIEMENS ENTERPRISE COMMUNICATIONS LIMITED,994760,-32590.96
"Department for Business, Innovation and Skills","Department for Business, Innovation and Skills",12/05/10,ICT Maintenance & Upkeep,Finance & Commercial Group - Information and Workplace Strategies,SIEMENS ENTERPRISE COMMUNICATIONS LIMITED,994760,-198.44
"Department for Business, Innovation and Skills","Department for Business, Innovation and Skills",12/05/10,ICT Maintenance & Upkeep,Finance & Commercial Group - Information and Workplace Strategies,SIEMENS ENTERPRISE COMMUNICATIONS LIMITED,994760,32590.96
"Department for Business, Innovation and Skills","Department for Business, Innovation and Skills",12/05/10,ICT Maintenance & Upkeep,Finance & Commercial Group - Information and Workplace Strategies,SIEMENS ENTERPRISE COMMUNICATIONS LIMITED,994760,32590.96
"Department for Business, Innovation and Skills","Department for Business, Innovation and Skills",12/05/10,ICT Maintenance & Upkeep,Finance & Commercial Group - Information and Workplace Strategies,SPSS (UK) LTD,995322,17140.95
"Department for Business, Innovation and Skills","Department for Business, Innovation and Skills",12/05/10,Flexible Computing Service,Finance & Commercial Group - Information and Workplace Strategies,VODAFONE LTD,979892,-9329.39
"Department for Business, Innovation and Skills","Department for Business, Innovation and Skills",12/05/10,Grant in Aid - Current -Other,Business Group - Economic Development Directorate,YORKSHIRE FORWARD,995282,30000000
"Department for Business, Innovation and Skills","Department for Business, Innovation and Skills",12/05/10,Mileage Allowances (Programme),Business Group - Advanced Manufacturing Industries,"Personal Expense, Name Witheld",995357,1207.8
"Department for Business, Innovation and Skills","Department for Business, Innovation and Skills",12/05/10,Capital Grants - Other,SCIENCE & RESEARCH GROUP - RESEARCH BASE,THE BRITISH ACADEMY,995325,35707.33
"Department for Business, Innovation and Skills","Department for Business, Innovation and Skills",12/05/10,Air Fares  - Overseas (Programme),SCIENCE & RESEARCH GROUP - RESEARCH BASE,"Personal Expense, Name Witheld",10269131,612.9
"Department for Business, Innovation and Skills","Department for Business, Innovation and Skills",12/05/10,Air Fares  - Overseas (Programme),SCIENCE & RESEARCH GROUP - RESEARCH BASE,"Personal Expense, Name Witheld",10269130,1556
"Department for Business, Innovation and Skills","Department for Business, Innovation and Skills",12/05/10,Independent Experts,Business Group - Advanced Manufacturing Industries,BRIAN JONES,995336,2245.53
"Department for Business, Innovation and Skills","Department for Business, Innovation and Skills",12/05/10,Outsourced Programme Management Services,Universities and Skills Group - Further Education & Skills Investment,HAYS ACCOUNTANCY PERSONNEL,995379,941.645
"Department for Business, Innovation and Skills","Department for Business, Innovation and Skills",12/05/10,Outsourced Programme Management Services,Universities and Skills Group - Further Education & Skills Investment,OUGHTRED & HARRISON LTD,995323,572.0605
"Department for Business, Innovation and Skills","Department for Business, Innovation and Skills",13/05/10,Technical Support,Business Group - Advanced Manufacturing Industries,MICHAEL J RUSSELL LTD,995493,15400
"Department for Business, Innovation and Skills","Department for Business, Innovation and Skills",13/05/10,Outsourced Programme Management Services,Fair Markets Group Summary - Employment Relations,PENINSULA BUSINESS SERVICES LTD,995570,12423.8625
"Department for Business, Innovation and Skills","Department for Business, Innovation and Skills",13/05/10,GPC New Procedures,Corporate Balance,BARCLAYS BANK PLC,995627,11532.98
"Department for Business, Innovation and Skills","Department for Business, Innovation and Skills",13/05/10,GPC New Procedures,Finance & Commercial Group - Finance Group,BARCLAYS BANK PLC,995623,51206.65
"Department for Business, Innovation and Skills","Department for Business, Innovation and Skills",13/05/10,GPC New Procedures,Finance & Commercial Group - Finance Group,BARCLAYS BANK PLC,995624,103655.93
"Department for Business, Innovation and Skills","Department for Business, Innovation and Skills",13/05/10,Payments to Barclays for Carlson Wagonlit Travel Contract,Finance & Commercial Group - Finance Group,BARCLAYS BANK PLC,995622,284256.09
"Department for Business, Innovation and Skills","Department for Business, Innovation and Skills",13/05/10,Recoveries Account,Corporate Balance,BRITISH ENERGY GENERATION LTD,995531,66269.45
"Department for Business, Innovation and Skills","Department for Business, Innovation and Skills",13/05/10,Leased Buildings - Clearing,Finance & Commercial Group - Information and Workplace Strategies,M J FERGUSON LTD,993785,-2632.3615
"Department for Business, Innovation and Skills","Department for Business, Innovation and Skills",13/05/10,Computer Equipment - Clearing,Finance & Commercial Group - Information and Workplace Strategies,PARITY RESOURCES LTD,995564,8084
"Department for Business, Innovation and Skills","Department for Business, Innovation and Skills",13/05/10,Research & Development Expenditure (Programme),SCIENCE & RESEARCH GROUP - UK Space Agency,OXFORD ECONOMICS LTD,995529,18667
"Department for Business, Innovation and Skills","Department for Business, Innovation and Skills",13/05/10,Outsourced Technical Support (Programme),SCIENCE & RESEARCH GROUP - UK Space Agency,ASTRIUM LTD,989227,-31500
"Department for Business, Innovation and Skills","Department for Business, Innovation and Skills",13/05/10,Outsourced Technical Support (Programme),SCIENCE & RESEARCH GROUP - UK Space Agency,ASTRIUM LTD,988887,31500
"Department for Business, Innovation and Skills","Department for Business, Innovation and Skills",13/05/10,Grants - Non Statutory - Current - Other,Universities and Skills Group - Learners,FAMILY ACTION,995495,10000
"Department for Business, Innovation and Skills","Department for Business, Innovation and Skills",13/05/10,Criminal Law and Prosecution Work,"Legal, People & Communications Group - Legal",CHRISTOPHER BADGER,995452,3750.6
"Department for Business, Innovation and Skills","Department for Business, Innovation and Skills",13/05/10,Criminal Law and Prosecution Work,"Legal, People & Communications Group - Legal",CHRISTOPHER BADGER,995453,3767.05
"Department for Business, Innovation and Skills","Department for Business, Innovation and Skills",13/05/10,Hire of Agency Staff (Clerical/Secretariat/Other),"Legal, People & Communications Group - Communications Directorate",OFFICE ANGELS LTD,995588,-1961.93275
"Department for Business, Innovation and Skills","Department for Business, Innovation and Skills",13/05/10,Hire of Agency Staff (Clerical/Secretariat/Other),Ministerial and Parliamentary Support Team - Ministerial and Parliamentary Support Team,OFFICE ANGELS LTD,995447,645.216
"Department for Business, Innovation and Skills","Department for Business, Innovation and Skills",13/05/10,Hire of Agency Staff (Clerical/Secretariat/Other),"Legal, People & Communications Group - Communications Directorate",OFFICE ANGELS LTD,995396,3923.85375
"Department for Business, Innovation and Skills","Department for Business, Innovation and Skills",13/05/10,Rail Fares,Finance & Commercial Group - Information and Workplace Strategies,"Personal Expense, Name Witheld",10269227,784.2
"Department for Business, Innovation and Skills","Department for Business, Innovation and Skills",13/05/10,Hotels Overseas,SCIENCE & RESEARCH GROUP - RESEARCH BASE,"Personal Expense, Name Witheld",10269181,1077.62
"Department for Business, Innovation and Skills","Department for Business, Innovation and Skills",13/05/10,External Training,Strategy Group - Strategy Directorate,"Personal Expense, Name Witheld",10269182,825
"Department for Business, Innovation and Skills","Department for Business, Innovation and Skills",13/05/10,Hire of Agency Staff (Professional/Management),Universities and Skills Group - USG Admin,Reed Personnel Services Ltd,995474,852.9325
"Department for Business, Innovation and Skills","Department for Business, Innovation and Skills",13/05/10,Hire of Agency Staff (Clerical/Secretariat/Other),Finance & Commercial Group - Information and Workplace Strategies,TFPL LTD,995449,822.5705
"Department for Business, Innovation and Skills","Department for Business, Innovation and Skills",13/05/10,Hire of Agency Staff (Clerical/Secretariat/Other),Finance & Commercial Group - Information and Workplace Strategies,TFPL LTD,995450,1021.122
"Department for Business, Innovation and Skills","Department for Business, Innovation and Skills",13/05/10,External Training,"Innovation, Enterprise & Better Regulation Executive - Innovation",THE LANCE EDYNBRY PARTNERSHIP,995446,1068
"Department for Business, Innovation and Skills","Department for Business, Innovation and Skills",13/05/10,Internal Training,GOVERNMENT OFFICE FOR SCIENCE - GOVERNMENT OFFICE FOR SCIENCE,THE LANCE EDYNBRY PARTNERSHIP,995445,1068
"Department for Business, Innovation and Skills","Department for Business, Innovation and Skills",13/05/10,Stationery,"Legal, People & Communications Group - Legal",VIKING DIRECT LTD,995296,-171.86725
"Department for Business, Innovation and Skills","Department for Business, Innovation and Skills",13/05/10,Stationery,"Legal, People & Communications Group - Legal",VIKING DIRECT LTD,995296,-2.96
"Department for Business, Innovation and Skills","Department for Business, Innovation and Skills",13/05/10,ICT Maintenance & Upkeep,Finance & Commercial Group - Information and Workplace Strategies,2E2 UK LTD,994756,8000
"Department for Business, Innovation and Skills","Department for Business, Innovation and Skills",13/05/10,ICT Training,"Legal, People & Communications Group - HRCM - Human Resources and Change Management Directorate",ACKNOWLEDGE LTD,995376,6565
"Department for Business, Innovation and Skills","Department for Business, Innovation and Skills",13/05/10,Other Relocation Costs,"Legal, People & Communications Group - HRCM - Human Resources and Change Management Directorate",CARTUS  LTD,995520,2705
"Department for Business, Innovation and Skills","Department for Business, Innovation and Skills",13/05/10,InfoSource Desktop Information and Research Services,Finance & Commercial Group - Information and Workplace Strategies,COMPANIES HOUSE,995372,1306.5
"Department for Business, Innovation and Skills","Department for Business, Innovation and Skills",13/05/10,ICT Maintenance & Upkeep,Finance & Commercial Group - Information and Workplace Strategies,ELAN COMPUTING LTD,995456,-1376.55
"Department for Business, Innovation and Skills","Department for Business, Innovation and Skills",13/05/10,ICT Maintenance & Upkeep,Finance & Commercial Group - Information and Workplace Strategies,ELAN COMPUTING LTD,995456,1376.55
"Department for Business, Innovation and Skills","Department for Business, Innovation and Skills",13/05/10,ICT Maintenance & Upkeep,Finance & Commercial Group - Information and Workplace Strategies,ELAN COMPUTING LTD,995456,1406.475
"Department for Business, Innovation and Skills","Department for Business, Innovation and Skills",13/05/10,FCO/COI Dispatches,Finance & Commercial Group - Information and Workplace Strategies,FCO SERVICES,995134,3959.9
"Department for Business, Innovation and Skills","Department for Business, Innovation and Skills",13/05/10,Other Overseas T&S,"Legal, People & Communications Group - HRCM - Human Resources and Change Management Directorate",FOREIGN AND COMMONWEALTH OFFICE (FCO),992954,1640.22
"Department for Business, Innovation and Skills","Department for Business, Innovation and Skills",13/05/10,Other Overseas T&S,"Legal, People & Communications Group - HRCM - Human Resources and Change Management Directorate",FOREIGN AND COMMONWEALTH OFFICE (FCO),992956,1640.22
"Department for Business, Innovation and Skills","Department for Business, Innovation and Skills",13/05/10,Other Overseas T&S,"Legal, People & Communications Group - HRCM - Human Resources and Change Management Directorate",FOREIGN AND COMMONWEALTH OFFICE (FCO),992957,1640.22
"Department for Business, Innovation and Skills","Department for Business, Innovation and Skills",13/05/10,Interdepartmental Dispatch Services,Finance & Commercial Group - Information and Workplace Strategies,GOVERNMENT CAR AND DESPATCH AGENCY,995572,545
"Department for Business, Innovation and Skills","Department for Business, Innovation and Skills",13/05/10,Interdepartmental Dispatch Services,Finance & Commercial Group - Information and Workplace Strategies,GOVERNMENT CAR AND DESPATCH AGENCY,995567,4299
"Department for Business, Innovation and Skills","Department for Business, Innovation and Skills",13/05/10,Interdepartmental Dispatch Services,Finance & Commercial Group - Information and Workplace Strategies,GOVERNMENT CAR AND DESPATCH AGENCY,995568,18774
"Department for Business, Innovation and Skills","Department for Business, Innovation and Skills",13/05/10,Technical Advice / Services & Support,Finance & Commercial Group - Information and Workplace Strategies,"KING STURGE & COMPANY CONSULTING LTD
",995476,28629
"Department for Business, Innovation and Skills","Department for Business, Innovation and Skills",13/05/10,Senior Civil Service Training,"Legal, People & Communications Group - HRCM - Human Resources and Change Management Directorate",LEARNLAB LTD,995496,10728.9
"Department for Business, Innovation and Skills","Department for Business, Innovation and Skills",13/05/10,ICT Maintenance & Upkeep (PFI),Finance & Commercial Group - Information and Workplace Strategies,PARITY RESOURCES LTD,995563,2802.375
"Department for Business, Innovation and Skills","Department for Business, Innovation and Skills",13/05/10,ICT Maintenance & Upkeep,Finance & Commercial Group - Information and Workplace Strategies,PARITY RESOURCES LTD,995155,9870
"Department for Business, Innovation and Skills","Department for Business, Innovation and Skills",13/05/10,Other IT Costs (Programme),Fair Markets Group Summary - Europe Directorate,METHODS CONSULTING LTD,995167,14922.5
"Department for Business, Innovation and Skills","Department for Business, Innovation and Skills",13/05/10,Conference and Exhibition Services (Programme),"Business Group - Solutions for Business, Low Carbon & Services",FOREIGN AND COMMONWEALTH OFFICE (FCO),993035,609.26
"Department for Business, Innovation and Skills","Department for Business, Innovation and Skills",13/05/10,Conference and Exhibition Services (Programme),"Business Group - Solutions for Business, Low Carbon & Services",FOREIGN AND COMMONWEALTH OFFICE (FCO),993037,1343.99
"Department for Business, Innovation and Skills","Department for Business, Innovation and Skills",13/05/10,Conference and Exhibition Services (Programme),"Business Group - Solutions for Business, Low Carbon & Services",FOREIGN AND COMMONWEALTH OFFICE (FCO),992960,8845
"Department for Business, Innovation and Skills","Department for Business, Innovation and Skills",13/05/10,Printing (Programme),Business Group - Advanced Manufacturing Industries,PROMOTIONAL LOGISTICS LTD,995574,551.25
"Department for Business, Innovation and Skills","Department for Business, Innovation and Skills",13/05/10,Grants - Statutory - Current - Other,SCIENCE & RESEARCH GROUP - RESEARCH BASE,BRITISH SCIENCE ASSOCIATION,995448,127583
"Department for Business, Innovation and Skills","Department for Business, Innovation and Skills",13/05/10,Research & Development Expenditure (Programme),SCIENCE & RESEARCH GROUP - RESEARCH BASE,UNIVERSITY OF THE WEST OF ENGLAND,995120,5375
"Department for Business, Innovation and Skills","Department for Business, Innovation and Skills",13/05/10,Research & Development Expenditure (Programme),SCIENCE & RESEARCH GROUP - RESEARCH BASE,UNIVERSITY OF THE WEST OF ENGLAND,995120,10500
"Department for Business, Innovation and Skills","Department for Business, Innovation and Skills",13/05/10,Research & Development Expenditure (Programme),SCIENCE & RESEARCH GROUP - RESEARCH BASE,UNIVERSITY OF THE WEST OF ENGLAND,995120,11850
"Department for Business, Innovation and Skills","Department for Business, Innovation and Skills",13/05/10,Grants - Statutory - Current - Other,SCIENCE & RESEARCH GROUP - RESEARCH BASE,BRADFORD COLLEGE,995492,244874.7
"Department for Business, Innovation and Skills","Department for Business, Innovation and Skills",13/05/10,Research & Development Expenditure (Programme),GOVERNMENT OFFICE FOR SCIENCE - GOVERNMENT OFFICE FOR SCIENCE,PIK - POTSDAM-INSTITUT FUR KLIMAFOLGENFORSCHUNG,995043,1529.6481
"Department for Business, Innovation and Skills","Department for Business, Innovation and Skills",13/05/10,Research & Development Expenditure (Programme),GOVERNMENT OFFICE FOR SCIENCE - GOVERNMENT OFFICE FOR SCIENCE,SUE HILL RECRUITMENT & SERVICES LTD,995443,4403.11275
"Department for Business, Innovation and Skills","Department for Business, Innovation and Skills",13/05/10,Research & Development Expenditure (Programme),GOVERNMENT OFFICE FOR SCIENCE - GOVERNMENT OFFICE FOR SCIENCE,UNIVERSITY OF CAMBRIDGE,995441,1000
"Department for Business, Innovation and Skills","Department for Business, Innovation and Skills",13/05/10,Grants - Statutory - Current - Other,SCIENCE & RESEARCH GROUP - RESEARCH BASE,FOREIGN AND COMMONWEALTH OFFICE (FCO),992847,1316
"Department for Business, Innovation and Skills","Department for Business, Innovation and Skills",13/05/10,Hotels (Programme),SCIENCE & RESEARCH GROUP - RESEARCH BASE,FOREIGN AND COMMONWEALTH OFFICE (FCO),992803,1150
"Department for Business, Innovation and Skills","Department for Business, Innovation and Skills",13/05/10,Others UK T&S (Programme),SCIENCE & RESEARCH GROUP - RESEARCH BASE,FOREIGN AND COMMONWEALTH OFFICE (FCO),992803,500
"Department for Business, Innovation and Skills","Department for Business, Innovation and Skills",13/05/10,Air Fares  - Overseas (Programme),SCIENCE & RESEARCH GROUP - RESEARCH BASE,FOREIGN AND COMMONWEALTH OFFICE (FCO),992911,524.49
"Department for Business, Innovation and Skills","Department for Business, Innovation and Skills",13/05/10,Air Fares  - Overseas (Programme),SCIENCE & RESEARCH GROUP - RESEARCH BASE,FOREIGN AND COMMONWEALTH OFFICE (FCO),992849,724.64
"Department for Business, Innovation and Skills","Department for Business, Innovation and Skills",13/05/10,Air Fares  - Overseas (Programme),SCIENCE & RESEARCH GROUP - RESEARCH BASE,FOREIGN AND COMMONWEALTH OFFICE (FCO),992848,886.76
"Department for Business, Innovation and Skills","Department for Business, Innovation and Skills",13/05/10,Air Fares  - Overseas (Programme),SCIENCE & RESEARCH GROUP - RESEARCH BASE,FOREIGN AND COMMONWEALTH OFFICE (FCO),992808,936.13
"Department for Business, Innovation and Skills","Department for Business, Innovation and Skills",13/05/10,Air Fares  - Overseas (Programme),SCIENCE & RESEARCH GROUP - RESEARCH BASE,FOREIGN AND COMMONWEALTH OFFICE (FCO),992903,1532.52
"Department for Business, Innovation and Skills","Department for Business, Innovation and Skills",13/05/10,Air Fares  - Overseas (Programme),SCIENCE & RESEARCH GROUP - RESEARCH BASE,FOREIGN AND COMMONWEALTH OFFICE (FCO),992913,1779.8
"Department for Business, Innovation and Skills","Department for Business, Innovation and Skills",13/05/10,Air Fares  - Overseas (Programme),SCIENCE & RESEARCH GROUP - RESEARCH BASE,FOREIGN AND COMMONWEALTH OFFICE (FCO),992839,1858
"Department for Business, Innovation and Skills","Department for Business, Innovation and Skills",13/05/10,Air Fares  - Overseas (Programme),SCIENCE & RESEARCH GROUP - RESEARCH BASE,FOREIGN AND COMMONWEALTH OFFICE (FCO),992803,2500
"Department for Business, Innovation and Skills","Department for Business, Innovation and Skills",13/05/10,Air Fares  - Overseas (Programme),SCIENCE & RESEARCH GROUP - RESEARCH BASE,FOREIGN AND COMMONWEALTH OFFICE (FCO),992887,3171.43
"Department for Business, Innovation and Skills","Department for Business, Innovation and Skills",13/05/10,Air Fares  - Overseas (Programme),SCIENCE & RESEARCH GROUP - RESEARCH BASE,FOREIGN AND COMMONWEALTH OFFICE (FCO),992802,3750
"Department for Business, Innovation and Skills","Department for Business, Innovation and Skills",13/05/10,Air Fares  - Overseas (Programme),SCIENCE & RESEARCH GROUP - RESEARCH BASE,FOREIGN AND COMMONWEALTH OFFICE (FCO),992832,3900.54
"Department for Business, Innovation and Skills","Department for Business, Innovation and Skills",13/05/10,Air Fares  - Overseas (Programme),SCIENCE & RESEARCH GROUP - RESEARCH BASE,FOREIGN AND COMMONWEALTH OFFICE (FCO),992807,6500
"Department for Business, Innovation and Skills","Department for Business, Innovation and Skills",13/05/10,Taxis- Overseas (Programme),SCIENCE & RESEARCH GROUP - RESEARCH BASE,FOREIGN AND COMMONWEALTH OFFICE (FCO),992837,973.24
"Department for Business, Innovation and Skills","Department for Business, Innovation and Skills",13/05/10,Hotels- Overseas  (Programme),SCIENCE & RESEARCH GROUP - RESEARCH BASE,FOREIGN AND COMMONWEALTH OFFICE (FCO),992896,-264.65
"Department for Business, Innovation and Skills","Department for Business, Innovation and Skills",13/05/10,Hotels- Overseas  (Programme),SCIENCE & RESEARCH GROUP - RESEARCH BASE,FOREIGN AND COMMONWEALTH OFFICE (FCO),992887,526.52
"Department for Business, Innovation and Skills","Department for Business, Innovation and Skills",13/05/10,Hotels- Overseas  (Programme),SCIENCE & RESEARCH GROUP - RESEARCH BASE,FOREIGN AND COMMONWEALTH OFFICE (FCO),992878,564.04
"Department for Business, Innovation and Skills","Department for Business, Innovation and Skills",13/05/10,Hotels- Overseas  (Programme),SCIENCE & RESEARCH GROUP - RESEARCH BASE,FOREIGN AND COMMONWEALTH OFFICE (FCO),992878,618.79
"Department for Business, Innovation and Skills","Department for Business, Innovation and Skills",13/05/10,Hotels- Overseas  (Programme),SCIENCE & RESEARCH GROUP - RESEARCH BASE,FOREIGN AND COMMONWEALTH OFFICE (FCO),992832,1086
"Department for Business, Innovation and Skills","Department for Business, Innovation and Skills",13/05/10,Hotels- Overseas  (Programme),SCIENCE & RESEARCH GROUP - RESEARCH BASE,FOREIGN AND COMMONWEALTH OFFICE (FCO),993034,1772.76
"Department for Business, Innovation and Skills","Department for Business, Innovation and Skills",13/05/10,Hotels- Overseas  (Programme),SCIENCE & RESEARCH GROUP - RESEARCH BASE,FOREIGN AND COMMONWEALTH OFFICE (FCO),992892,2000
"Department for Business, Innovation and Skills","Department for Business, Innovation and Skills",13/05/10,Hotels- Overseas  (Programme),SCIENCE & RESEARCH GROUP - RESEARCH BASE,FOREIGN AND COMMONWEALTH OFFICE (FCO),992904,2399.53
"Department for Business, Innovation and Skills","Department for Business, Innovation and Skills",13/05/10,Hotels- Overseas  (Programme),SCIENCE & RESEARCH GROUP - RESEARCH BASE,FOREIGN AND COMMONWEALTH OFFICE (FCO),992807,2500
"Department for Business, Innovation and Skills","Department for Business, Innovation and Skills",13/05/10,Subsistence Payments- Overseas (Programme),SCIENCE & RESEARCH GROUP - RESEARCH BASE,FOREIGN AND COMMONWEALTH OFFICE (FCO),992800,1771.32
"Department for Business, Innovation and Skills","Department for Business, Innovation and Skills",13/05/10,Other Overseas T&S (Programme),SCIENCE & RESEARCH GROUP - RESEARCH BASE,FOREIGN AND COMMONWEALTH OFFICE (FCO),992808,529.59
"Department for Business, Innovation and Skills","Department for Business, Innovation and Skills",13/05/10,Purchase of  Advertising and Publicity (Programme),SCIENCE & RESEARCH GROUP - RESEARCH BASE,FOREIGN AND COMMONWEALTH OFFICE (FCO),992833,641.22
"Department for Business, Innovation and Skills","Department for Business, Innovation and Skills",13/05/10,Purchase of  Advertising and Publicity (Programme),SCIENCE & RESEARCH GROUP - RESEARCH BASE,FOREIGN AND COMMONWEALTH OFFICE (FCO),992832,1705.19
"Department for Business, Innovation and Skills","Department for Business, Innovation and Skills",13/05/10,Conference and Exhibition Services (Programme),SCIENCE & RESEARCH GROUP - RESEARCH BASE,FOREIGN AND COMMONWEALTH OFFICE (FCO),992836,502.53
"Department for Business, Innovation and Skills","Department for Business, Innovation and Skills",13/05/10,Interpreters,SCIENCE & RESEARCH GROUP - RESEARCH BASE,FOREIGN AND COMMONWEALTH OFFICE (FCO),992805,672.24
"Department for Business, Innovation and Skills","Department for Business, Innovation and Skills",13/05/10,Air Fares  - Overseas (Programme),SCIENCE & RESEARCH GROUP - RESEARCH BASE,"Personal Expense, Name Witheld",10269184,577.9
"Department for Business, Innovation and Skills","Department for Business, Innovation and Skills",13/05/10,Air Fares  - Overseas (Programme),SCIENCE & RESEARCH GROUP - RESEARCH BASE,"Personal Expense, Name Witheld",10269206,630.72
"Department for Business, Innovation and Skills","Department for Business, Innovation and Skills",13/05/10,Air Fares  - Overseas (Programme),SCIENCE & RESEARCH GROUP - RESEARCH BASE,"Personal Expense, Name Witheld",10269180,754.9
"Department for Business, Innovation and Skills","Department for Business, Innovation and Skills",13/05/10,Air Fares  - Overseas (Programme),SCIENCE & RESEARCH GROUP - RESEARCH BASE,"Personal Expense, Name Witheld",10269196,1541
"Department for Business, Innovation and Skills","Department for Business, Innovation and Skills",13/05/10,Air Fares  - Overseas (Programme),SCIENCE & RESEARCH GROUP - RESEARCH BASE,"Personal Expense, Name Witheld",10269193,2631.1
"Department for Business, Innovation and Skills","Department for Business, Innovation and Skills",13/05/10,Hotels- Overseas  (Programme),SCIENCE & RESEARCH GROUP - RESEARCH BASE,"Personal Expense, Name Witheld",10269180,533.63
"Department for Business, Innovation and Skills","Department for Business, Innovation and Skills",13/05/10,Publications (Programme),Universities and Skills Group - Skills Directorate,PROMOTIONAL LOGISTICS LTD,995535,2584.05
"Department for Business, Innovation and Skills","Department for Business, Innovation and Skills",14/05/10,Grants - Non Statutory - Current - Other,Business Group - Advanced Manufacturing Industries,ADVANTAGE WEST MIDLANDS,995600,119913.96
"Department for Business, Innovation and Skills","Department for Business, Innovation and Skills",14/05/10,Grants - Non Statutory - Current - Other,Business Group - Advanced Manufacturing Industries,EAST MIDLANDS DEVELOPMENT AGENCY,995621,13420
"Department for Business, Innovation and Skills","Department for Business, Innovation and Skills",14/05/10,Furniture F & F - Clearing,Finance & Commercial Group - Information and Workplace Strategies,SENATOR INTERNATIONAL LTD,995641,2585
"Department for Business, Innovation and Skills","Department for Business, Innovation and Skills",14/05/10,Purchase of Completed Research,"Innovation, Enterprise & Better Regulation Executive - Innovation",?WHAT IF! LTD,995606,4500
"Department for Business, Innovation and Skills","Department for Business, Innovation and Skills",14/05/10,Grant in Aid - Current -Other,SCIENCE & RESEARCH GROUP - UK Space Agency,GROVE PRIMARY SCHOOL,995513,3000
"Department for Business, Innovation and Skills","Department for Business, Innovation and Skills",14/05/10,Grant in Aid - Current -Other,SCIENCE & RESEARCH GROUP - UK Space Agency,THE BRITISH INTERPLANETARY SOCIETY,995659,3000
"Department for Business, Innovation and Skills","Department for Business, Innovation and Skills",14/05/10,Grants - Non Statutory - Current - Other,Universities and Skills Group - Further Education,INSTITUTE FOR LEARNING (PCET),995661,948990
"Department for Business, Innovation and Skills","Department for Business, Innovation and Skills",14/05/10,Grants - Non Statutory - Current - Other,Universities and Skills Group - Further Education,LIFELONG LEARNING UK (LLUK),995696,609958
"Department for Business, Innovation and Skills","Department for Business, Innovation and Skills",14/05/10,Criminal Law and Prosecution Work,"Legal, People & Communications Group - Legal",ALASTAIR SMITH,995338,508.19925
"Department for Business, Innovation and Skills","Department for Business, Innovation and Skills",14/05/10,Criminal Law and Prosecution Work,"Legal, People & Communications Group - Legal",PAUL SHARKEY,995618,687.375
"Department for Business, Innovation and Skills","Department for Business, Innovation and Skills",14/05/10,Criminal Law and Prosecution Work,"Legal, People & Communications Group - Legal",RHONA CAMPBELL,995340,11498.091
"Department for Business, Innovation and Skills","Department for Business, Innovation and Skills",14/05/10,Grants - Non Statutory - Current - Other,Business Group - Advanced Manufacturing Industries,ADVANTAGE WEST MIDLANDS,995602,89651.87
"Department for Business, Innovation and Skills","Department for Business, Innovation and Skills",14/05/10,Grants - Non Statutory - Current - Other,Business Group - Advanced Manufacturing Industries,EAST MIDLANDS DEVELOPMENT AGENCY,995621,12308.98
"Department for Business, Innovation and Skills","Department for Business, Innovation and Skills",14/05/10,Buildings Insurance (Programme),Finance & Commercial Group - Information and Workplace Strategies,P HARRISON TRUST & J HARRISON TRUST,995629,3626.97
"Department for Business, Innovation and Skills","Department for Business, Innovation and Skills",14/05/10,Media and Design Services,"Legal, People & Communications Group - Communications Directorate",BELL DESIGN & COMMUNICATIONS LTD,995643,587.5
"Department for Business, Innovation and Skills","Department for Business, Innovation and Skills",14/05/10,External Training,"Legal, People & Communications Group - HRCM - Human Resources and Change Management Directorate",NATIONAL SCHOOL OF GOVERNMENT,995709,750
"Department for Business, Innovation and Skills","Department for Business, Innovation and Skills",14/05/10,External Training,"Legal, People & Communications Group - HRCM - Human Resources and Change Management Directorate",NATIONAL SCHOOL OF GOVERNMENT,995708,750
"Department for Business, Innovation and Skills","Department for Business, Innovation and Skills",14/05/10,External Training,"Legal, People & Communications Group - Legal",NATIONAL SCHOOL OF GOVERNMENT,995678,900
"Department for Business, Innovation and Skills","Department for Business, Innovation and Skills",14/05/10,External Training,"Legal, People & Communications Group - Legal",NATIONAL SCHOOL OF GOVERNMENT,995676,900
"Department for Business, Innovation and Skills","Department for Business, Innovation and Skills",14/05/10,External Training,Shareholder Executive - Shareholder Executive,NATIONAL SCHOOL OF GOVERNMENT,995707,10950
"Department for Business, Innovation and Skills","Department for Business, Innovation and Skills",14/05/10,External Training,Strategic Policy Analysis - Strategic Policy Analysis,NOW-C-CHANGE LTD,995612,1388.22
"Department for Business, Innovation and Skills","Department for Business, Innovation and Skills",14/05/10,Economic Consultancy & Research,Fair Markets Group Summary - Europe and World Trade Directorates,OECD ORGANISATION FOR ECONOMIC CO-OPERATION AND DEVELOPMENT,995252,10000
"Department for Business, Innovation and Skills","Department for Business, Innovation and Skills",14/05/10,Hire of Agency Staff (Clerical/Secretariat/Other),"Legal, People & Communications Group - Communications Directorate",OFFICE ANGELS LTD,995594,-2452.3895
"Department for Business, Innovation and Skills","Department for Business, Innovation and Skills",14/05/10,Hire of Agency Staff (Clerical/Secretariat/Other),"Legal, People & Communications Group - Communications Directorate",OFFICE ANGELS LTD,995613,-2452.3895
"Department for Business, Innovation and Skills","Department for Business, Innovation and Skills",14/05/10,Hire of Agency Staff (Clerical/Secretariat/Other),"Legal, People & Communications Group - Communications Directorate",OFFICE ANGELS LTD,995607,-1961.93275
"Department for Business, Innovation and Skills","Department for Business, Innovation and Skills",14/05/10,Hire of Agency Staff (Clerical/Secretariat/Other),"Legal, People & Communications Group - Communications Directorate",OFFICE ANGELS LTD,995410,3923.85375
"Department for Business, Innovation and Skills","Department for Business, Innovation and Skills",14/05/10,Hire of Agency Staff (Clerical/Secretariat/Other),"Legal, People & Communications Group - Communications Directorate",OFFICE ANGELS LTD,995413,4904.81425
"Department for Business, Innovation and Skills","Department for Business, Innovation and Skills",14/05/10,Hire of Agency Staff (Clerical/Secretariat/Other),"Legal, People & Communications Group - Communications Directorate",OFFICE ANGELS LTD,995412,4904.81425
"Department for Business, Innovation and Skills","Department for Business, Innovation and Skills",14/05/10,External Training,Fair Markets Group Summary - Fair Markets Director General's Office,PJR LTD,995698,1976
"Department for Business, Innovation and Skills","Department for Business, Innovation and Skills",14/05/10,Other Telephone Costs,Universities and Skills Group - USG Admin,PREMIERE GLOBAL SERVICES,995373,840.17
"Department for Business, Innovation and Skills","Department for Business, Innovation and Skills",14/05/10,Printing,GOVERNMENT OFFICE FOR SCIENCE - GOVERNMENT OFFICE FOR SCIENCE,PROMOTIONAL LOGISTICS LTD,995571,-167.79
"Department for Business, Innovation and Skills","Department for Business, Innovation and Skills",14/05/10,Publications,Strategic Policy Analysis - Strategic Policy Analysis,PROMOTIONAL LOGISTICS LTD,995683,5874.95
"Department for Business, Innovation and Skills","Department for Business, Innovation and Skills",14/05/10,Publications,Strategic Policy Analysis - Strategic Policy Analysis,PROMOTIONAL LOGISTICS LTD,995681,10335.5
"Department for Business, Innovation and Skills","Department for Business, Innovation and Skills",14/05/10,External Training,"Innovation, Enterprise & Better Regulation Executive - Innovation",THE LANCE EDYNBRY PARTNERSHIP,995440,1068
"Department for Business, Innovation and Skills","Department for Business, Innovation and Skills",14/05/10,Hire of Agency Staff (Professional/Management),"Legal, People & Communications Group - HRCM - Human Resources and Change Management Directorate",TJNVS CONSULTING LTD,995713,22971.25
"Department for Business, Innovation and Skills","Department for Business, Innovation and Skills",14/05/10,Economic Consultancy & Research,GOVERNMENT OFFICE FOR SCIENCE - GOVERNMENT OFFICE FOR SCIENCE,TONY QUIGLEY CONSULTING LTD,995674,1500
"Department for Business, Innovation and Skills","Department for Business, Innovation and Skills",14/05/10,Standard Desktop Plus Service (PFI),Finance & Commercial Group - Information and Workplace Strategies,AMEY COMMUNITY LTD,995633,5752.189
"Department for Business, Innovation and Skills","Department for Business, Innovation and Skills",14/05/10,Freight Charges,Finance & Commercial Group - Information and Workplace Strategies,DHL GLOBAL FORWARDING (UK) LTD,995655,-15.65
"Department for Business, Innovation and Skills","Department for Business, Innovation and Skills",14/05/10,Freight Charges,Finance & Commercial Group - Information and Workplace Strategies,DHL GLOBAL FORWARDING (UK) LTD,995654,786.25
"Department for Business, Innovation and Skills","Department for Business, Innovation and Skills",14/05/10,Standard Desktop Plus Service (PFI),Finance & Commercial Group - Information and Workplace Strategies,FUJITSU SERVICES LTD,995752,-27.542
"Department for Business, Innovation and Skills","Department for Business, Innovation and Skills",14/05/10,Standard Desktop Plus Service (PFI),Finance & Commercial Group - Information and Workplace Strategies,FUJITSU SERVICES LTD,995745,790.01
"Department for Business, Innovation and Skills","Department for Business, Innovation and Skills",14/05/10,Standard Desktop Plus Service (PFI),Finance & Commercial Group - Information and Workplace Strategies,FUJITSU SERVICES LTD,995725,1295.28
"Department for Business, Innovation and Skills","Department for Business, Innovation and Skills",14/05/10,Standard Desktop Plus Service (PFI),Finance & Commercial Group - Information and Workplace Strategies,FUJITSU SERVICES LTD,995750,8263
"Department for Business, Innovation and Skills","Department for Business, Innovation and Skills",14/05/10,External Training,Strategic Policy Analysis - Strategic Policy Analysis,MICKLEDORE LTD,995605,2400
"Department for Business, Innovation and Skills","Department for Business, Innovation and Skills",14/05/10,External Legal Advice and Services,Finance & Commercial Group - Information and Workplace Strategies,MORTON FRASER LLP,994861,-1128.35
"Department for Business, Innovation and Skills","Department for Business, Innovation and Skills",14/05/10,External Legal Advice and Services,Finance & Commercial Group - Information and Workplace Strategies,MORTON FRASER LLP,994861,-1009.1
"Department for Business, Innovation and Skills","Department for Business, Innovation and Skills",14/05/10,External Legal Advice and Services,Finance & Commercial Group - Information and Workplace Strategies,MORTON FRASER LLP,994861,-28.8
"Department for Business, Innovation and Skills","Department for Business, Innovation and Skills",14/05/10,External Legal Advice and Services,Finance & Commercial Group - Information and Workplace Strategies,MORTON FRASER LLP,994861,1009.1
"Department for Business, Innovation and Skills","Department for Business, Innovation and Skills",14/05/10,External Legal Advice and Services,Finance & Commercial Group - Information and Workplace Strategies,MORTON FRASER LLP,994861,1009.1
"Department for Business, Innovation and Skills","Department for Business, Innovation and Skills",14/05/10,External Legal Advice and Services,Finance & Commercial Group - Information and Workplace Strategies,MORTON FRASER LLP,994861,1099.55
"Department for Business, Innovation and Skills","Department for Business, Innovation and Skills",14/05/10,External Legal Advice and Services,Finance & Commercial Group - Information and Workplace Strategies,MORTON FRASER LLP,994861,1128.35
"Department for Business, Innovation and Skills","Department for Business, Innovation and Skills",14/05/10,Local IT Consultancy,Finance & Commercial Group - Information and Workplace Strategies,MOUCHEL MANAGEMENT CONSULTING LTD,995747,8466.08
"Department for Business, Innovation and Skills","Department for Business, Innovation and Skills",14/05/10,InfoSource Desktop Information and Research Services,Finance & Commercial Group - Information and Workplace Strategies,OXFORD UNIVERSITY PRESS,995603,1377
"Department for Business, Innovation and Skills","Department for Business, Innovation and Skills",14/05/10,Postage,Finance & Commercial Group - Information and Workplace Strategies,ROYAL MAIL,995592,3091.5
"Department for Business, Innovation and Skills","Department for Business, Innovation and Skills",14/05/10,Hire of Reprographic Equipment,Finance & Commercial Group - Information and Workplace Strategies,XEROX (UK) LTD,989437,-8027.23
"Department for Business, Innovation and Skills","Department for Business, Innovation and Skills",14/05/10,Grants - Non Statutory - Current - Other,Business Group - Life Sciences,WOLODYMYR MAKSYMOWYCH PROFESSIONAL CORPORATION,995582,750
"Department for Business, Innovation and Skills","Department for Business, Innovation and Skills",14/05/10,Research & Development Expenditure (Programme),GOVERNMENT OFFICE FOR SCIENCE - GOVERNMENT OFFICE FOR SCIENCE,Name withheld - data protection,995723,6300
"Department for Business, Innovation and Skills","Department for Business, Innovation and Skills",14/05/10,Catering Services (Programme),GOVERNMENT OFFICE FOR SCIENCE - GOVERNMENT OFFICE FOR SCIENCE,CITY INN WESTMINSTER,995647,3250
"Department for Business, Innovation and Skills","Department for Business, Innovation and Skills",14/05/10,Research & Development Expenditure (Programme),GOVERNMENT OFFICE FOR SCIENCE - GOVERNMENT OFFICE FOR SCIENCE,LODGE CATERING LTD,995645,1888.5
"Department for Business, Innovation and Skills","Department for Business, Innovation and Skills",14/05/10,Air Fares  - Overseas (Programme),SCIENCE & RESEARCH GROUP - RESEARCH BASE,INTERNATIONAL FOOD POLICY RESEARCH INSTITUTE (IFPRI),995298,933.378495
"Department for Business, Innovation and Skills","Department for Business, Innovation and Skills",14/05/10,Hire of Agency Staff (NDPB use only),Shareholder Executive - Shareholder Executive,BROOK STREET (UK) LTD,995735,647.801
"Department for Business, Innovation and Skills","Department for Business, Innovation and Skills",14/05/10,Grant in Aid - Current -Other,Fair Markets Group Summary - Europe and World Trade Directorates,SITPRO LTD,995578,40000
"Department for Business, Innovation and Skills","Department for Business, Innovation and Skills",14/05/10,Publications (Programme),Universities and Skills Group - Skills Directorate,PROMOTIONAL LOGISTICS LTD,995595,1846.95
"Department for Business, Innovation and Skills","Department for Business, Innovation and Skills",14/05/10,Stationery (Programme),Universities and Skills Group - Government Skills,OFFICE DEPOT UK LTD,989675,-545.2
"Department for Business, Innovation and Skills","Department for Business, Innovation and Skills",14/05/10,Outsourced Programme Management Services,Universities and Skills Group - Further Education & Skills Investment,HAYS ACCOUNTANCY PERSONNEL,995577,980.091
"Department for Business, Innovation and Skills","Department for Business, Innovation and Skills",14/05/10,Loan Guarantees,Finance & Commercial Group - Finance Group,ALLEN & OVERY LLP,995608,6601.2
"Department for Business, Innovation and Skills","Department for Business, Innovation and Skills",17/05/10,Financial Advice and Services,Business Group - Advanced Manufacturing Industries,INTERIM PERFORMERS LTD,994761,2491
"Department for Business, Innovation and Skills","Department for Business, Innovation and Skills",17/05/10,Financial Advice and Services,Business Group - Advanced Manufacturing Industries,INTERIM PERFORMERS LTD,994759,2761.25
"Department for Business, Innovation and Skills","Department for Business, Innovation and Skills",17/05/10,Plant & Machinery - Clearing,Finance & Commercial Group - Information and Workplace Strategies,BAXTERSTOREY LTD,995835,4835.125
"Department for Business, Innovation and Skills","Department for Business, Innovation and Skills",17/05/10,Leased Buildings - Clearing,Finance & Commercial Group - Information and Workplace Strategies,COFELY LTD,995845,1523.82225
"Department for Business, Innovation and Skills","Department for Business, Innovation and Skills",17/05/10,Leased Buildings - Clearing,Finance & Commercial Group - Information and Workplace Strategies,ISS FACILITY SERVICES LTD T/A ISS PEGASUS SECURITY,995824,614.8305
"Department for Business, Innovation and Skills","Department for Business, Innovation and Skills",17/05/10,Leased Buildings - Clearing,Finance & Commercial Group - Information and Workplace Strategies,ISS FACILITY SERVICES LTD T/A ISS PEGASUS SECURITY,995824,2329.884
"Department for Business, Innovation and Skills","Department for Business, Innovation and Skills",17/05/10,Leased Buildings - Clearing,Finance & Commercial Group - Information and Workplace Strategies,M J FERGUSON LTD,993785,-2632.3615
"Department for Business, Innovation and Skills","Department for Business, Innovation and Skills",17/05/10,Leased Buildings - Clearing,Finance & Commercial Group - Information and Workplace Strategies,OFFICE PROJECTS LTD,995831,62874.56725
"Department for Business, Innovation and Skills","Department for Business, Innovation and Skills",17/05/10,Leased Buildings - Clearing,Finance & Commercial Group - Information and Workplace Strategies,OFFICE PROJECTS LTD,995826,104062.3828
"Department for Business, Innovation and Skills","Department for Business, Innovation and Skills",17/05/10,Leased Buildings - Clearing,Finance & Commercial Group - Information and Workplace Strategies,OFFICE PROJECTS LTD,995826,206060.831
"Department for Business, Innovation and Skills","Department for Business, Innovation and Skills",17/05/10,Furniture F & F - Clearing,Finance & Commercial Group - Information and Workplace Strategies,SENATOR INTERNATIONAL LTD,995899,6804.425
"Department for Business, Innovation and Skills","Department for Business, Innovation and Skills",17/05/10,Outsourced Technical Support (Programme),SCIENCE & RESEARCH GROUP - UK Space Agency,CLAIR PASSELLE,995755,2000
"Department for Business, Innovation and Skills","Department for Business, Innovation and Skills",17/05/10,Media and Design Services,Fair Markets Group Summary - Employment Relations,BLACKBIRD PRODUCTIONS,995903,9975
"Department for Business, Innovation and Skills","Department for Business, Innovation and Skills",17/05/10,Grants - Non Statutory - Current - Other,Universities and Skills Group - Learners,STUDENT LOANS COMPANY LIMITED,995381,23626799
"Department for Business, Innovation and Skills","Department for Business, Innovation and Skills",17/05/10,Grants - Non Statutory - Current - Other,Universities and Skills Group - Learners,STUDENT LOANS COMPANY LIMITED,995381,2045070
"Department for Business, Innovation and Skills","Department for Business, Innovation and Skills",17/05/10,Capital Grants to Local Authorities - Asset Creation,Business Group - Economic Development Directorate,THE LONDON DEVELOPMENT AGENCY LTD,995347,15000000
"Department for Business, Innovation and Skills","Department for Business, Innovation and Skills",17/05/10,London Development Agency - Current Statutory Grant,Business Group - Economic Development Directorate,THE LONDON DEVELOPMENT AGENCY LTD,995347,15000000
"Department for Business, Innovation and Skills","Department for Business, Innovation and Skills",17/05/10,Outsourced Programme Management Services,"Legal, People & Communications Group - Communications Directorate",BADENOCH AND CLARK LTD,995764,-357.2935
"Department for Business, Innovation and Skills","Department for Business, Innovation and Skills",17/05/10,External Training,"Legal, People & Communications Group - Communications Directorate",NATIONAL SCHOOL OF GOVERNMENT (CMPS),995807,595
"Department for Business, Innovation and Skills","Department for Business, Innovation and Skills",17/05/10,External Training,"Legal, People & Communications Group - Communications Directorate",NATIONAL SCHOOL OF GOVERNMENT (CMPS),995780,595
"Department for Business, Innovation and Skills","Department for Business, Innovation and Skills",17/05/10,Hire of Agency Staff (Professional/Management),"Legal, People & Communications Group - Communications Directorate",XCHANGETEAM GROUP LTD,995886,1052.50625
"Department for Business, Innovation and Skills","Department for Business, Innovation and Skills",17/05/10,ICT Maintenance & Upkeep,Finance & Commercial Group - Information and Workplace Strategies,BADENOCH AND CLARK LTD,995727,2000
"Department for Business, Innovation and Skills","Department for Business, Innovation and Skills",17/05/10,Maintenance,Finance & Commercial Group - Information and Workplace Strategies,BAXTERSTOREY LTD,995830,21825
"Department for Business, Innovation and Skills","Department for Business, Innovation and Skills",17/05/10,ICT Maintenance & Upkeep,Finance & Commercial Group - Information and Workplace Strategies,BROOK STREET (UK) LTD,995828,502.806
"Department for Business, Innovation and Skills","Department for Business, Innovation and Skills",17/05/10,ICT Maintenance & Upkeep,Finance & Commercial Group - Information and Workplace Strategies,BROOK STREET (UK) LTD,995763,510.373
"Department for Business, Innovation and Skills","Department for Business, Innovation and Skills",17/05/10,ICT Maintenance & Upkeep,Finance & Commercial Group - Information and Workplace Strategies,BROOK STREET (UK) LTD,995839,544.401
"Department for Business, Innovation and Skills","Department for Business, Innovation and Skills",17/05/10,ICT Maintenance & Upkeep,Finance & Commercial Group - Information and Workplace Strategies,BROOK STREET (UK) LTD,995834,597.323
"Department for Business, Innovation and Skills","Department for Business, Innovation and Skills",17/05/10,ICT Maintenance & Upkeep,Finance & Commercial Group - Information and Workplace Strategies,BROOK STREET (UK) LTD,995762,608.66175
"Department for Business, Innovation and Skills","Department for Business, Innovation and Skills",17/05/10,ICT Maintenance & Upkeep,Finance & Commercial Group - Information and Workplace Strategies,BROOK STREET (UK) LTD,995842,616.22875
"Department for Business, Innovation and Skills","Department for Business, Innovation and Skills",17/05/10,ICT Maintenance & Upkeep,Finance & Commercial Group - Information and Workplace Strategies,BROOK STREET (UK) LTD,995757,631.351
"Department for Business, Innovation and Skills","Department for Business, Innovation and Skills",17/05/10,ICT Maintenance & Upkeep,Finance & Commercial Group - Information and Workplace Strategies,BROOK STREET (UK) LTD,995761,654.0285
"Department for Business, Innovation and Skills","Department for Business, Innovation and Skills",17/05/10,GTN Services,Finance & Commercial Group - Information and Workplace Strategies,CABLE & WIRELESS COMMUNICATIONS,995908,1231.541
"Department for Business, Innovation and Skills","Department for Business, Innovation and Skills",17/05/10,ICT Maintenance & Upkeep,Finance & Commercial Group - Information and Workplace Strategies,CAPGEMINI UK plc,995100,2026.75
"Department for Business, Innovation and Skills","Department for Business, Innovation and Skills",17/05/10,ICT Maintenance & Upkeep,Finance & Commercial Group - Information and Workplace Strategies,CAPITA RESOURCING LTD,995882,1084.5
"Department for Business, Innovation and Skills","Department for Business, Innovation and Skills",17/05/10,ICT Maintenance & Upkeep,Finance & Commercial Group - Information and Workplace Strategies,CAPITA RESOURCING LTD,995882,1084.5
"Department for Business, Innovation and Skills","Department for Business, Innovation and Skills",17/05/10,ICT Maintenance & Upkeep,Finance & Commercial Group - Information and Workplace Strategies,CAPITA RESOURCING LTD,995882,6145.5
"Department for Business, Innovation and Skills","Department for Business, Innovation and Skills",17/05/10,Other Relocation Costs,"Legal, People & Communications Group - HRCM - Human Resources and Change Management Directorate",CARTUS  LTD,995794,710.53
"Department for Business, Innovation and Skills","Department for Business, Innovation and Skills",17/05/10,Maintenance,Finance & Commercial Group - Information and Workplace Strategies,COFELY LTD,995892,712
"Department for Business, Innovation and Skills","Department for Business, Innovation and Skills",17/05/10,Electricity,Finance & Commercial Group - Information and Workplace Strategies,EDF ENERGY plc,995846,1299.42075
"Department for Business, Innovation and Skills","Department for Business, Innovation and Skills",17/05/10,Electricity,Finance & Commercial Group - Information and Workplace Strategies,EDF ENERGY plc,995836,1894.60525
"Department for Business, Innovation and Skills","Department for Business, Innovation and Skills",17/05/10,Electricity,Finance & Commercial Group - Information and Workplace Strategies,EDF ENERGY plc,995818,4239.43525
"Department for Business, Innovation and Skills","Department for Business, Innovation and Skills",17/05/10,Electricity,Finance & Commercial Group - Information and Workplace Strategies,EDF ENERGY plc,995821,10727.94975
"Department for Business, Innovation and Skills","Department for Business, Innovation and Skills",17/05/10,Electricity,Finance & Commercial Group - Information and Workplace Strategies,EDF ENERGY plc,995841,19941.8885
"Department for Business, Innovation and Skills","Department for Business, Innovation and Skills",17/05/10,Electricity,Finance & Commercial Group - Information and Workplace Strategies,EDF ENERGY plc,995822,34850.7585
"Department for Business, Innovation and Skills","Department for Business, Innovation and Skills",17/05/10,Electricity,Finance & Commercial Group - Information and Workplace Strategies,EDF ENERGY plc,995816,41230.87925
"Department for Business, Innovation and Skills","Department for Business, Innovation and Skills",17/05/10,Press Office Facilities,"Legal, People & Communications Group - Communications Directorate",ENERGY DATA SERVICES LTD T/A PRECISE,995904,17346.74
"Department for Business, Innovation and Skills","Department for Business, Innovation and Skills",17/05/10,Standard Desktop Plus Service (PFI),Finance & Commercial Group - Information and Workplace Strategies,FUJITSU SERVICES LTD,995744,1616.23
"Department for Business, Innovation and Skills","Department for Business, Innovation and Skills",17/05/10,Guarding and Security Services,Finance & Commercial Group - Information and Workplace Strategies,ISS FACILITY SERVICES LTD T/A ISS PEGASUS SECURITY,995855,826.2
"Department for Business, Innovation and Skills","Department for Business, Innovation and Skills",17/05/10,Maintenance,Finance & Commercial Group - Information and Workplace Strategies,M J FERGUSON LTD,995823,-2673.4
"Department for Business, Innovation and Skills","Department for Business, Innovation and Skills",17/05/10,Maintenance,Finance & Commercial Group - Information and Workplace Strategies,M J FERGUSON LTD,995823,949.96
"Department for Business, Innovation and Skills","Department for Business, Innovation and Skills",17/05/10,Maintenance,Finance & Commercial Group - Information and Workplace Strategies,M J FERGUSON LTD,995823,1723.44
"Department for Business, Innovation and Skills","Department for Business, Innovation and Skills",17/05/10,Maintenance,Finance & Commercial Group - Information and Workplace Strategies,M J FERGUSON LTD,995823,2673.4
"Department for Business, Innovation and Skills","Department for Business, Innovation and Skills",17/05/10,Mail and Messenger Contract Costs,Finance & Commercial Group - Information and Workplace Strategies,MANPOWER UK LTD,995894,2276.1395
"Department for Business, Innovation and Skills","Department for Business, Innovation and Skills",17/05/10,ICT Maintenance & Upkeep,Finance & Commercial Group - Information and Workplace Strategies,MSB INTERNATIONAL LTD T/A NETWORKERS MSB,995900,4170.075
"Department for Business, Innovation and Skills","Department for Business, Innovation and Skills",17/05/10,ICT Maintenance & Upkeep,Finance & Commercial Group - Information and Workplace Strategies,MSB INTERNATIONAL LTD T/A NETWORKERS MSB,995900,6552.975
"Department for Business, Innovation and Skills","Department for Business, Innovation and Skills",17/05/10,ADP Training,"Legal, People & Communications Group - HRCM - Human Resources and Change Management Directorate",NATIONAL SCHOOL OF GOVERNMENT (CMPS),995705,2500
"Department for Business, Innovation and Skills","Department for Business, Innovation and Skills",17/05/10,ADP Training,"Legal, People & Communications Group - HRCM - Human Resources and Change Management Directorate",NATIONAL SCHOOL OF GOVERNMENT (CMPS),995703,2500
"Department for Business, Innovation and Skills","Department for Business, Innovation and Skills",17/05/10,ADP Training,"Legal, People & Communications Group - HRCM - Human Resources and Change Management Directorate",NATIONAL SCHOOL OF GOVERNMENT (CMPS),995781,2500
"Department for Business, Innovation and Skills","Department for Business, Innovation and Skills",17/05/10,ADP Training,"Legal, People & Communications Group - HRCM - Human Resources and Change Management Directorate",NATIONAL SCHOOL OF GOVERNMENT (CMPS),995791,23400
"Department for Business, Innovation and Skills","Department for Business, Innovation and Skills",17/05/10,CCTA Services,Finance & Commercial Group - Information and Workplace Strategies,OGC BUYING SOLUTIONS,995891,350312.5143
"Department for Business, Innovation and Skills","Department for Business, Innovation and Skills",17/05/10,ICT Maintenance & Upkeep (PFI),Finance & Commercial Group - Information and Workplace Strategies,PARITY RESOURCES LTD,995786,4659.4625
"Department for Business, Innovation and Skills","Department for Business, Innovation and Skills",17/05/10,External Legal Advice and Services,Finance & Commercial Group - Information and Workplace Strategies,PINSENT MASONS LLP,995877,1691
"Department for Business, Innovation and Skills","Department for Business, Innovation and Skills",17/05/10,Refuse Disposals,Finance & Commercial Group - Information and Workplace Strategies,SITA UK LTD,995918,520.7
"Department for Business, Innovation and Skills","Department for Business, Innovation and Skills",17/05/10,Refuse Disposals,Finance & Commercial Group - Information and Workplace Strategies,SITA UK LTD,995907,574
"Department for Business, Innovation and Skills","Department for Business, Innovation and Skills",17/05/10,Refuse Disposals,Finance & Commercial Group - Information and Workplace Strategies,SITA UK LTD,995911,1508.66
"Department for Business, Innovation and Skills","Department for Business, Innovation and Skills",17/05/10,Refuse Disposals,Finance & Commercial Group - Information and Workplace Strategies,SITA UK LTD,995914,1913.09
"Department for Business, Innovation and Skills","Department for Business, Innovation and Skills",17/05/10,Maintenance,Finance & Commercial Group - Information and Workplace Strategies,STORACALL VOICE SYSTEMS LTD,995489,828.43
"Department for Business, Innovation and Skills","Department for Business, Innovation and Skills",17/05/10,ICT Infrastructure Specific Service,Finance & Commercial Group - Information and Workplace Strategies,XMA LTD,995917,1429.411
"Department for Business, Innovation and Skills","Department for Business, Innovation and Skills",17/05/10,ICT Infrastructure Specific Service,Finance & Commercial Group - Information and Workplace Strategies,XMA LTD,995817,3365.54075
"Department for Business, Innovation and Skills","Department for Business, Innovation and Skills",17/05/10,ICT Infrastructure Specific Service,Finance & Commercial Group - Information and Workplace Strategies,XMA LTD,995814,4626.19825
"Department for Business, Innovation and Skills","Department for Business, Innovation and Skills",17/05/10,Grant in Aid - Current -Other,Business Group - Economic Development Directorate,ADVANTAGE WEST MIDLANDS,995355,16000000
"Department for Business, Innovation and Skills","Department for Business, Innovation and Skills",17/05/10,Grant in Aid - Current -Other,Business Group - Economic Development Directorate,EAST MIDLANDS DEVELOPMENT AGENCY,995352,7000000
"Department for Business, Innovation and Skills","Department for Business, Innovation and Skills",17/05/10,Grant in Aid - Current -Other,Business Group - Economic Development Directorate,EAST OF ENGLAND DEVELOPMENT AGENCY (EEDA),995354,15000000
"Department for Business, Innovation and Skills","Department for Business, Innovation and Skills",17/05/10,Grant in Aid - Current -Other,Business Group - Economic Development Directorate,NORTHWEST REGIONAL DEVELOPMENT AGENCY,995351,60000000
"Department for Business, Innovation and Skills","Department for Business, Innovation and Skills",17/05/10,Grant in Aid - Current -Other,Business Group - Economic Development Directorate,ONE NORTH EAST,995350,30000000
"Department for Business, Innovation and Skills","Department for Business, Innovation and Skills",17/05/10,Grant in Aid - Current -Other,Business Group - Economic Development Directorate,SOUTH EAST ENGLAND DEVELOPMENT AGENCY,995349,9000000
"Department for Business, Innovation and Skills","Department for Business, Innovation and Skills",17/05/10,Grant in Aid - Current -Other,Business Group - Economic Development Directorate,SOUTH WEST OF ENGLAND REGIONAL DEVELOPMENT AGENCY,995348,5100000
"Department for Business, Innovation and Skills","Department for Business, Innovation and Skills",17/05/10,Other IT Costs (Programme),Fair Markets Group Summary - Europe Directorate,DEPARTMENT FOR COMMUNITIES AND LOCAL GOVERNMENT,995819,5068.09
"Department for Business, Innovation and Skills","Department for Business, Innovation and Skills",17/05/10,Other IT Costs (Programme),Fair Markets Group Summary - Europe Directorate,DEPARTMENT FOR COMMUNITIES AND LOCAL GOVERNMENT,995819,52000
"Department for Business, Innovation and Skills","Department for Business, Innovation and Skills",17/05/10,Other IT Costs (Programme),Fair Markets Group Summary - Europe Directorate,SERCO LTD,990337,-342175
"Department for Business, Innovation and Skills","Department for Business, Innovation and Skills",17/05/10,Other IT Costs (Programme),Fair Markets Group Summary - Europe Directorate,SERCO LTD,990337,342175
"Department for Business, Innovation and Skills","Department for Business, Innovation and Skills",17/05/10,Other IT Costs (Programme),Fair Markets Group Summary - Europe Directorate,SERCO LTD,990337,342175
"Department for Business, Innovation and Skills","Department for Business, Innovation and Skills",17/05/10,Other IT Costs (Programme),Fair Markets Group Summary - Europe Directorate,SERCO LTD,990339,420332.75
"Department for Business, Innovation and Skills","Department for Business, Innovation and Skills",17/05/10,Other IT Costs (Programme),Fair Markets Group Summary - Europe Directorate,TRADING STANDARDS INSTITUTE (TSI),995876,37199.62
"Department for Business, Innovation and Skills","Department for Business, Innovation and Skills",17/05/10,Student Loans Cash,Universities and Skills Group - Learners,STUDENT LOANS COMPANY LIMITED,995381,20761108
"Department for Business, Innovation and Skills","Department for Business, Innovation and Skills",17/05/10,Student Loans Cash,Universities and Skills Group - Learners,STUDENT LOANS COMPANY LIMITED,995381,39554511
"Department for Business, Innovation and Skills","Department for Business, Innovation and Skills",17/05/10,Publications (Programme),SCIENCE & RESEARCH GROUP - RESEARCH BASE,PROMOTIONAL LOGISTICS LTD,995756,1937.25
"Department for Business, Innovation and Skills","Department for Business, Innovation and Skills",17/05/10,Publications (Programme),SCIENCE & RESEARCH GROUP - RESEARCH BASE,PROMOTIONAL LOGISTICS LTD,995758,2618.66
"Department for Business, Innovation and Skills","Department for Business, Innovation and Skills",17/05/10,Publications (Programme),SCIENCE & RESEARCH GROUP - RESEARCH BASE,PROMOTIONAL LOGISTICS LTD,995756,4945.5
"Department for Business, Innovation and Skills","Department for Business, Innovation and Skills",17/05/10,Research & Development Expenditure (Programme),GOVERNMENT OFFICE FOR SCIENCE - GOVERNMENT OFFICE FOR SCIENCE,RETHINK (NATIONAL SCHIZOPHRENIA FELLOWSHIP),995593,-4278.43
"Department for Business, Innovation and Skills","Department for Business, Innovation and Skills",17/05/10,Research & Development Expenditure (Programme),GOVERNMENT OFFICE FOR SCIENCE - GOVERNMENT OFFICE FOR SCIENCE,RETHINK (NATIONAL SCHIZOPHRENIA FELLOWSHIP),995593,4278.43
"Department for Business, Innovation and Skills","Department for Business, Innovation and Skills",17/05/10,Research & Development Expenditure (Programme),GOVERNMENT OFFICE FOR SCIENCE - GOVERNMENT OFFICE FOR SCIENCE,RETHINK (NATIONAL SCHIZOPHRENIA FELLOWSHIP),995593,4278.43
"Department for Business, Innovation and Skills","Department for Business, Innovation and Skills",17/05/10,Air Fares  - Overseas (Programme),SCIENCE & RESEARCH GROUP - RESEARCH BASE,FOREIGN AND COMMONWEALTH OFFICE (FCO),993248,981.04
"Department for Business, Innovation and Skills","Department for Business, Innovation and Skills",17/05/10,Air Fares  - Overseas (Programme),SCIENCE & RESEARCH GROUP - RESEARCH BASE,FOREIGN AND COMMONWEALTH OFFICE (FCO),993245,1100
"Department for Business, Innovation and Skills","Department for Business, Innovation and Skills",17/05/10,Air Fares  - Overseas (Programme),SCIENCE & RESEARCH GROUP - RESEARCH BASE,FOREIGN AND COMMONWEALTH OFFICE (FCO),993249,1341.04
"Department for Business, Innovation and Skills","Department for Business, Innovation and Skills",17/05/10,Air Fares  - Overseas (Programme),SCIENCE & RESEARCH GROUP - RESEARCH BASE,FOREIGN AND COMMONWEALTH OFFICE (FCO),993261,1517.57
"Department for Business, Innovation and Skills","Department for Business, Innovation and Skills",17/05/10,Air Fares  - Overseas (Programme),SCIENCE & RESEARCH GROUP - RESEARCH BASE,FOREIGN AND COMMONWEALTH OFFICE (FCO),993256,2271.75
"Department for Business, Innovation and Skills","Department for Business, Innovation and Skills",17/05/10,Air Fares  - Overseas (Programme),SCIENCE & RESEARCH GROUP - RESEARCH BASE,FOREIGN AND COMMONWEALTH OFFICE (FCO),993259,2449.2
"Department for Business, Innovation and Skills","Department for Business, Innovation and Skills",17/05/10,Hotels- Overseas  (Programme),SCIENCE & RESEARCH GROUP - RESEARCH BASE,FOREIGN AND COMMONWEALTH OFFICE (FCO),993243,775.57
"Department for Business, Innovation and Skills","Department for Business, Innovation and Skills",17/05/10,Hotels- Overseas  (Programme),SCIENCE & RESEARCH GROUP - RESEARCH BASE,FOREIGN AND COMMONWEALTH OFFICE (FCO),993248,1131.73
"Department for Business, Innovation and Skills","Department for Business, Innovation and Skills",17/05/10,Hotels- Overseas  (Programme),SCIENCE & RESEARCH GROUP - RESEARCH BASE,FOREIGN AND COMMONWEALTH OFFICE (FCO),993240,6588.36
"Department for Business, Innovation and Skills","Department for Business, Innovation and Skills",17/05/10,Subsistence Payments- Overseas (Programme),SCIENCE & RESEARCH GROUP - RESEARCH BASE,FOREIGN AND COMMONWEALTH OFFICE (FCO),993241,2072.58
"Department for Business, Innovation and Skills","Department for Business, Innovation and Skills",17/05/10,Technical Services,SCIENCE & RESEARCH GROUP - RESEARCH BASE,FOREIGN AND COMMONWEALTH OFFICE (FCO),993244,9500
"Department for Business, Innovation and Skills","Department for Business, Innovation and Skills",17/05/10,Hire of Conference Facilities (Programme),SCIENCE & RESEARCH GROUP - RESEARCH BASE,FOREIGN AND COMMONWEALTH OFFICE (FCO),993242,4872.4
"Department for Business, Innovation and Skills","Department for Business, Innovation and Skills",17/05/10,Cash Expenditure during the Year - Other Programme Provisions,Fair Markets Group Summary - Employment Relations,"Payment Under the Icelandic Trawlerman Compensation Scheme, Name Witheld",10269313,507.67
"Department for Business, Innovation and Skills","Department for Business, Innovation and Skills",17/05/10,Cash Expenditure during the Year - Other Programme Provisions,Fair Markets Group Summary - Employment Relations,"Payment Under the Icelandic Trawlerman Compensation Scheme, Name Witheld",10269314,558.44
"Department for Business, Innovation and Skills","Department for Business, Innovation and Skills",17/05/10,Cash Expenditure during the Year - Other Programme Provisions,Fair Markets Group Summary - Employment Relations,"Payment Under the Icelandic Trawlerman Compensation Scheme, Name Witheld",10269307,634.59
"Department for Business, Innovation and Skills","Department for Business, Innovation and Skills",17/05/10,Cash Expenditure during the Year - Other Programme Provisions,Fair Markets Group Summary - Employment Relations,"Payment Under the Icelandic Trawlerman Compensation Scheme, Name Witheld",10269309,685.35
"Department for Business, Innovation and Skills","Department for Business, Innovation and Skills",17/05/10,Cash Expenditure during the Year - Other Programme Provisions,Fair Markets Group Summary - Employment Relations,"Payment Under the Icelandic Trawlerman Compensation Scheme, Name Witheld",10269330,685.36
"Department for Business, Innovation and Skills","Department for Business, Innovation and Skills",17/05/10,Cash Expenditure during the Year - Other Programme Provisions,Fair Markets Group Summary - Employment Relations,"Payment Under the Icelandic Trawlerman Compensation Scheme, Name Witheld",10269331,786.89
"Department for Business, Innovation and Skills","Department for Business, Innovation and Skills",17/05/10,Cash Expenditure during the Year - Other Programme Provisions,Fair Markets Group Summary - Employment Relations,"Payment Under the Icelandic Trawlerman Compensation Scheme, Name Witheld",10269325,812.28
"Department for Business, Innovation and Skills","Department for Business, Innovation and Skills",17/05/10,Cash Expenditure during the Year - Other Programme Provisions,Fair Markets Group Summary - Employment Relations,"Payment Under the Icelandic Trawlerman Compensation Scheme, Name Witheld",10269319,6778.29
"Department for Business, Innovation and Skills","Department for Business, Innovation and Skills",18/05/10,Grants - Non Statutory - Current - Other,Business Group - Advanced Manufacturing Industries,YORKSHIRE FORWARD,996109,14969
"Department for Business, Innovation and Skills","Department for Business, Innovation and Skills",18/05/10,Grants - Non Statutory - Current - Other,Business Group - Advanced Manufacturing Industries,YORKSHIRE FORWARD,996109,32187
"Department for Business, Innovation and Skills","Department for Business, Innovation and Skills",18/05/10,Payments to Barclays for Carlson Wagonlit Travel Contract,Finance & Commercial Group - Finance Group,CARLSON WAGONLIT TRAVEL UK LTD,996038,-38930.58
"Department for Business, Innovation and Skills","Department for Business, Innovation and Skills",18/05/10,Payments to Barclays for Carlson Wagonlit Travel Contract,Finance & Commercial Group - Finance Group,CARLSON WAGONLIT TRAVEL UK LTD,996038,38930.58
"Department for Business, Innovation and Skills","Department for Business, Innovation and Skills",18/05/10,Payments to Barclays for Carlson Wagonlit Travel Contract,Finance & Commercial Group - Finance Group,CARLSON WAGONLIT TRAVEL UK LTD,996038,38931.06
"Department for Business, Innovation and Skills","Department for Business, Innovation and Skills",18/05/10,Leased Buildings - Clearing,Finance & Commercial Group - Information and Workplace Strategies,EC HARRIS LLP,995466,-53227.75
"Department for Business, Innovation and Skills","Department for Business, Innovation and Skills",18/05/10,Leased Buildings - Clearing,Finance & Commercial Group - Information and Workplace Strategies,EC HARRIS LLP,995464,5622.375
"Department for Business, Innovation and Skills","Department for Business, Innovation and Skills",18/05/10,Leased Buildings - Clearing,Finance & Commercial Group - Information and Workplace Strategies,EC HARRIS LLP,995468,5875
"Department for Business, Innovation and Skills","Department for Business, Innovation and Skills",18/05/10,Leased Buildings - Clearing,Finance & Commercial Group - Information and Workplace Strategies,EC HARRIS LLP,995466,53227.75
"Department for Business, Innovation and Skills","Department for Business, Innovation and Skills",18/05/10,Leased Buildings - Clearing,Finance & Commercial Group - Information and Workplace Strategies,EC HARRIS LLP,995466,54384.875
"Department for Business, Innovation and Skills","Department for Business, Innovation and Skills",18/05/10,Recoverable VAT Input,Corporate Balance,NATIONAL MEASUREMENT OFFICE,996078,3093930.21
"Department for Business, Innovation and Skills","Department for Business, Innovation and Skills",18/05/10,Recoverable VAT Input,Corporate Balance,OPG COMPANIES HOUSE [40004],996076,719804.77
"Department for Business, Innovation and Skills","Department for Business, Innovation and Skills",18/05/10,Recoverable VAT Input,Corporate Balance,THE INSOLVENCY SERVICE,996077,1237658.09
"Department for Business, Innovation and Skills","Department for Business, Innovation and Skills",18/05/10,Recoverable VAT Input,Corporate Balance,UK INTELLECTUAL PROPERTY OFFICE,996075,154624.07
"Department for Business, Innovation and Skills","Department for Business, Innovation and Skills",18/05/10,Recoverable VAT Input,Corporate Balance,UK TRADE & INVESTMENT,996079,764044.69
"Department for Business, Innovation and Skills","Department for Business, Innovation and Skills",18/05/10,Grants - Non Statutory - Current - Other,Fair Markets Group Summary - Consumer and Competition Policy,BIRMINGHAM CITY COUNCIL,996124,12475.31
"Department for Business, Innovation and Skills","Department for Business, Innovation and Skills",18/05/10,Outsourced Technical Support (Programme),SCIENCE & RESEARCH GROUP - UK Space Agency,UNIVERSITY OF READING,995697,20000
"Department for Business, Innovation and Skills","Department for Business, Innovation and Skills",18/05/10,Grant in Aid - Current -Other,"Innovation, Enterprise & Better Regulation Executive - Innovation",DESIGN COUNCIL,996059,453000
"Department for Business, Innovation and Skills","Department for Business, Innovation and Skills",18/05/10,Accommodation Rentals (Programme),Fair Markets Group Summary - Europe Directorate,DONA MARIA JESUS BIELZA DIAZ-CANEJA,995562,1083.75
"Department for Business, Innovation and Skills","Department for Business, Innovation and Skills",18/05/10,Hire of Conference Facilities (Programme),Universities and Skills Group - USG Admin,FOREIGN AND COMMONWEALTH OFFICE (FCO),995478,3024.9
"Department for Business, Innovation and Skills","Department for Business, Innovation and Skills",18/05/10,Grant in Aid - Current -Other,Universities and Skills Group - Higher Education,HIGHER EDUCATION FUNDING COUNCIL FOR ENGLAND,995951,65896735
"Department for Business, Innovation and Skills","Department for Business, Innovation and Skills",18/05/10,Grant in Aid - Current -Other,Universities and Skills Group - Higher Education,HIGHER EDUCATION FUNDING COUNCIL FOR ENGLAND,995952,725703265
"Department for Business, Innovation and Skills","Department for Business, Innovation and Skills",18/05/10,Criminal Law and Prosecution Work,"Legal, People & Communications Group - Legal",CARPE-DATUM,995345,3396.925
"Department for Business, Innovation and Skills","Department for Business, Innovation and Skills",18/05/10,Grant in Aid - Current -Other,Universities and Skills Group - Higher Education,OFFICE FOR FAIR ACCESS (OFFA),995943,25000
"Department for Business, Innovation and Skills","Department for Business, Innovation and Skills",18/05/10,Counsels Expert Legal Opinion on Points of Law,"Legal, People & Communications Group - Legal",BEACHCROFT LLP,996021,-9810
"Department for Business, Innovation and Skills","Department for Business, Innovation and Skills",18/05/10,Counsels Expert Legal Opinion on Points of Law,"Legal, People & Communications Group - Legal",BEACHCROFT LLP,996020,-8406
"Department for Business, Innovation and Skills","Department for Business, Innovation and Skills",18/05/10,Counsels Expert Legal Opinion on Points of Law,"Legal, People & Communications Group - Legal",BEACHCROFT LLP,996014,-4563.5
"Department for Business, Innovation and Skills","Department for Business, Innovation and Skills",18/05/10,Counsels Expert Legal Opinion on Points of Law,"Legal, People & Communications Group - Legal",BEACHCROFT LLP,996017,-4400.28
"Department for Business, Innovation and Skills","Department for Business, Innovation and Skills",18/05/10,Counsels Expert Legal Opinion on Points of Law,"Legal, People & Communications Group - Legal",BEACHCROFT LLP,996052,-3882.5
"Department for Business, Innovation and Skills","Department for Business, Innovation and Skills",18/05/10,Counsels Expert Legal Opinion on Points of Law,"Legal, People & Communications Group - Legal",BEACHCROFT LLP,996019,-3000
"Department for Business, Innovation and Skills","Department for Business, Innovation and Skills",18/05/10,Counsels Expert Legal Opinion on Points of Law,"Legal, People & Communications Group - Legal",BEACHCROFT LLP,996030,-2370
"Department for Business, Innovation and Skills","Department for Business, Innovation and Skills",18/05/10,Counsels Expert Legal Opinion on Points of Law,"Legal, People & Communications Group - Legal",BEACHCROFT LLP,995996,-2089.97
"Department for Business, Innovation and Skills","Department for Business, Innovation and Skills",18/05/10,Counsels Expert Legal Opinion on Points of Law,"Legal, People & Communications Group - Legal",BEACHCROFT LLP,996010,-1964.79
"Department for Business, Innovation and Skills","Department for Business, Innovation and Skills",18/05/10,Counsels Expert Legal Opinion on Points of Law,"Legal, People & Communications Group - Legal",BEACHCROFT LLP,996037,-1935
"Department for Business, Innovation and Skills","Department for Business, Innovation and Skills",18/05/10,Counsels Expert Legal Opinion on Points of Law,"Legal, People & Communications Group - Legal",BEACHCROFT LLP,996024,-1817
"Department for Business, Innovation and Skills","Department for Business, Innovation and Skills",18/05/10,Counsels Expert Legal Opinion on Points of Law,"Legal, People & Communications Group - Legal",BEACHCROFT LLP,996034,-1782.5
"Department for Business, Innovation and Skills","Department for Business, Innovation and Skills",18/05/10,Counsels Expert Legal Opinion on Points of Law,"Legal, People & Communications Group - Legal",BEACHCROFT LLP,996040,-1759.5
"Department for Business, Innovation and Skills","Department for Business, Innovation and Skills",18/05/10,Counsels Expert Legal Opinion on Points of Law,"Legal, People & Communications Group - Legal",BEACHCROFT LLP,996039,-885.5
"Department for Business, Innovation and Skills","Department for Business, Innovation and Skills",18/05/10,Counsels Expert Legal Opinion on Points of Law,"Legal, People & Communications Group - Legal",BEACHCROFT LLP,996042,-793.5
"Department for Business, Innovation and Skills","Department for Business, Innovation and Skills",18/05/10,Counsels Expert Legal Opinion on Points of Law,"Legal, People & Communications Group - Legal",BEACHCROFT LLP,995998,-690
"Department for Business, Innovation and Skills","Department for Business, Innovation and Skills",18/05/10,Counsels Expert Legal Opinion on Points of Law,"Legal, People & Communications Group - Legal",BEACHCROFT LLP,995998,-690
"Department for Business, Innovation and Skills","Department for Business, Innovation and Skills",18/05/10,Counsels Expert Legal Opinion on Points of Law,"Legal, People & Communications Group - Legal",BEACHCROFT LLP,996026,-690
"Department for Business, Innovation and Skills","Department for Business, Innovation and Skills",18/05/10,Counsels Expert Legal Opinion on Points of Law,"Legal, People & Communications Group - Legal",BEACHCROFT LLP,995998,-680
"Department for Business, Innovation and Skills","Department for Business, Innovation and Skills",18/05/10,Counsels Expert Legal Opinion on Points of Law,"Legal, People & Communications Group - Legal",BEACHCROFT LLP,996056,-569
"Department for Business, Innovation and Skills","Department for Business, Innovation and Skills",18/05/10,Counsels Expert Legal Opinion on Points of Law,"Legal, People & Communications Group - Legal",BEACHCROFT LLP,996036,-563.5
"Department for Business, Innovation and Skills","Department for Business, Innovation and Skills",18/05/10,Counsels Expert Legal Opinion on Points of Law,"Legal, People & Communications Group - Legal",BEACHCROFT LLP,996028,-521.5
"Department for Business, Innovation and Skills","Department for Business, Innovation and Skills",18/05/10,Counsels Expert Legal Opinion on Points of Law,"Legal, People & Communications Group - Legal",BEACHCROFT LLP,996026,-301
"Department for Business, Innovation and Skills","Department for Business, Innovation and Skills",18/05/10,Counsels Expert Legal Opinion on Points of Law,"Legal, People & Communications Group - Legal",BEACHCROFT LLP,996007,-287.5
"Department for Business, Innovation and Skills","Department for Business, Innovation and Skills",18/05/10,Counsels Expert Legal Opinion on Points of Law,"Legal, People & Communications Group - Legal",BEACHCROFT LLP,996036,-282.5
"Department for Business, Innovation and Skills","Department for Business, Innovation and Skills",18/05/10,Counsels Expert Legal Opinion on Points of Law,"Legal, People & Communications Group - Legal",BEACHCROFT LLP,996018,-230
"Department for Business, Innovation and Skills","Department for Business, Innovation and Skills",18/05/10,Counsels Expert Legal Opinion on Points of Law,"Legal, People & Communications Group - Legal",BEACHCROFT LLP,996045,-210
"Department for Business, Innovation and Skills","Department for Business, Innovation and Skills",18/05/10,Counsels Expert Legal Opinion on Points of Law,"Legal, People & Communications Group - Legal",BEACHCROFT LLP,996043,-192
"Department for Business, Innovation and Skills","Department for Business, Innovation and Skills",18/05/10,Counsels Expert Legal Opinion on Points of Law,"Legal, People & Communications Group - Legal",BEACHCROFT LLP,996049,-180
"Department for Business, Innovation and Skills","Department for Business, Innovation and Skills",18/05/10,Counsels Expert Legal Opinion on Points of Law,"Legal, People & Communications Group - Legal",BEACHCROFT LLP,996035,-174.5
"Department for Business, Innovation and Skills","Department for Business, Innovation and Skills",18/05/10,Counsels Expert Legal Opinion on Points of Law,"Legal, People & Communications Group - Legal",BEACHCROFT LLP,996028,-161
"Department for Business, Innovation and Skills","Department for Business, Innovation and Skills",18/05/10,Counsels Expert Legal Opinion on Points of Law,"Legal, People & Communications Group - Legal",BEACHCROFT LLP,996018,-160
"Department for Business, Innovation and Skills","Department for Business, Innovation and Skills",18/05/10,Counsels Expert Legal Opinion on Points of Law,"Legal, People & Communications Group - Legal",BEACHCROFT LLP,996042,-139.5
"Department for Business, Innovation and Skills","Department for Business, Innovation and Skills",18/05/10,Counsels Expert Legal Opinion on Points of Law,"Legal, People & Communications Group - Legal",BEACHCROFT LLP,996045,-105
"Department for Business, Innovation and Skills","Department for Business, Innovation and Skills",18/05/10,Counsels Expert Legal Opinion on Points of Law,"Legal, People & Communications Group - Legal",BEACHCROFT LLP,996032,-103.5
"Department for Business, Innovation and Skills","Department for Business, Innovation and Skills",18/05/10,Counsels Expert Legal Opinion on Points of Law,"Legal, People & Communications Group - Legal",BEACHCROFT LLP,996010,-95
"Department for Business, Innovation and Skills","Department for Business, Innovation and Skills",18/05/10,Counsels Expert Legal Opinion on Points of Law,"Legal, People & Communications Group - Legal",BEACHCROFT LLP,996041,-80.5
"Department for Business, Innovation and Skills","Department for Business, Innovation and Skills",18/05/10,Counsels Expert Legal Opinion on Points of Law,"Legal, People & Communications Group - Legal",BEACHCROFT LLP,996019,-40
"Department for Business, Innovation and Skills","Department for Business, Innovation and Skills",18/05/10,Counsels Expert Legal Opinion on Points of Law,"Legal, People & Communications Group - Legal",BEACHCROFT LLP,996041,-32
"Department for Business, Innovation and Skills","Department for Business, Innovation and Skills",18/05/10,Counsels Expert Legal Opinion on Points of Law,"Legal, People & Communications Group - Legal",BEACHCROFT LLP,996020,-23
"Department for Business, Innovation and Skills","Department for Business, Innovation and Skills",18/05/10,Counsels Expert Legal Opinion on Points of Law,"Legal, People & Communications Group - Legal",BEACHCROFT LLP,996035,-23
"Department for Business, Innovation and Skills","Department for Business, Innovation and Skills",18/05/10,Counsels Expert Legal Opinion on Points of Law,"Legal, People & Communications Group - Legal",BEACHCROFT LLP,996043,-11.5
"Department for Business, Innovation and Skills","Department for Business, Innovation and Skills",18/05/10,Counsels Expert Legal Opinion on Points of Law,"Legal, People & Communications Group - Legal",BEACHCROFT LLP,995998,-10
"Department for Business, Innovation and Skills","Department for Business, Innovation and Skills",18/05/10,Counsels Expert Legal Opinion on Points of Law,"Legal, People & Communications Group - Legal",BEACHCROFT LLP,996028,521.5
"Department for Business, Innovation and Skills","Department for Business, Innovation and Skills",18/05/10,Counsels Expert Legal Opinion on Points of Law,"Legal, People & Communications Group - Legal",BEACHCROFT LLP,996036,563.5
"Department for Business, Innovation and Skills","Department for Business, Innovation and Skills",18/05/10,Counsels Expert Legal Opinion on Points of Law,"Legal, People & Communications Group - Legal",BEACHCROFT LLP,996056,569
"Department for Business, Innovation and Skills","Department for Business, Innovation and Skills",18/05/10,Counsels Expert Legal Opinion on Points of Law,"Legal, People & Communications Group - Legal",BEACHCROFT LLP,995998,680
"Department for Business, Innovation and Skills","Department for Business, Innovation and Skills",18/05/10,Counsels Expert Legal Opinion on Points of Law,"Legal, People & Communications Group - Legal",BEACHCROFT LLP,995998,690
"Department for Business, Innovation and Skills","Department for Business, Innovation and Skills",18/05/10,Counsels Expert Legal Opinion on Points of Law,"Legal, People & Communications Group - Legal",BEACHCROFT LLP,995998,690
"Department for Business, Innovation and Skills","Department for Business, Innovation and Skills",18/05/10,Counsels Expert Legal Opinion on Points of Law,"Legal, People & Communications Group - Legal",BEACHCROFT LLP,996026,690
"Department for Business, Innovation and Skills","Department for Business, Innovation and Skills",18/05/10,Counsels Expert Legal Opinion on Points of Law,"Legal, People & Communications Group - Legal",BEACHCROFT LLP,996042,793.5
"Department for Business, Innovation and Skills","Department for Business, Innovation and Skills",18/05/10,Counsels Expert Legal Opinion on Points of Law,"Legal, People & Communications Group - Legal",BEACHCROFT LLP,996039,885.5
"Department for Business, Innovation and Skills","Department for Business, Innovation and Skills",18/05/10,Counsels Expert Legal Opinion on Points of Law,"Legal, People & Communications Group - Legal",BEACHCROFT LLP,996040,1759.5
"Department for Business, Innovation and Skills","Department for Business, Innovation and Skills",18/05/10,Counsels Expert Legal Opinion on Points of Law,"Legal, People & Communications Group - Legal",BEACHCROFT LLP,996034,1782.5
"Department for Business, Innovation and Skills","Department for Business, Innovation and Skills",18/05/10,Counsels Expert Legal Opinion on Points of Law,"Legal, People & Communications Group - Legal",BEACHCROFT LLP,996024,1817
"Department for Business, Innovation and Skills","Department for Business, Innovation and Skills",18/05/10,Counsels Expert Legal Opinion on Points of Law,"Legal, People & Communications Group - Legal",BEACHCROFT LLP,996037,1920
"Department for Business, Innovation and Skills","Department for Business, Innovation and Skills",18/05/10,Counsels Expert Legal Opinion on Points of Law,"Legal, People & Communications Group - Legal",BEACHCROFT LLP,996010,1964.79
"Department for Business, Innovation and Skills","Department for Business, Innovation and Skills",18/05/10,Counsels Expert Legal Opinion on Points of Law,"Legal, People & Communications Group - Legal",BEACHCROFT LLP,995996,2089.97
"Department for Business, Innovation and Skills","Department for Business, Innovation and Skills",18/05/10,Counsels Expert Legal Opinion on Points of Law,"Legal, People & Communications Group - Legal",BEACHCROFT LLP,996030,2370
"Department for Business, Innovation and Skills","Department for Business, Innovation and Skills",18/05/10,Counsels Expert Legal Opinion on Points of Law,"Legal, People & Communications Group - Legal",BEACHCROFT LLP,996019,3000
"Department for Business, Innovation and Skills","Department for Business, Innovation and Skills",18/05/10,Counsels Expert Legal Opinion on Points of Law,"Legal, People & Communications Group - Legal",BEACHCROFT LLP,996052,3882.5
"Department for Business, Innovation and Skills","Department for Business, Innovation and Skills",18/05/10,Counsels Expert Legal Opinion on Points of Law,"Legal, People & Communications Group - Legal",BEACHCROFT LLP,996017,4400.28
"Department for Business, Innovation and Skills","Department for Business, Innovation and Skills",18/05/10,Counsels Expert Legal Opinion on Points of Law,"Legal, People & Communications Group - Legal",BEACHCROFT LLP,996014,4563.5
"Department for Business, Innovation and Skills","Department for Business, Innovation and Skills",18/05/10,Counsels Expert Legal Opinion on Points of Law,"Legal, People & Communications Group - Legal",BEACHCROFT LLP,996020,8406
"Department for Business, Innovation and Skills","Department for Business, Innovation and Skills",18/05/10,Counsels Expert Legal Opinion on Points of Law,"Legal, People & Communications Group - Legal",BEACHCROFT LLP,996021,9810
"Department for Business, Innovation and Skills","Department for Business, Innovation and Skills",18/05/10,Media and Design Services,"Legal, People & Communications Group - Communications Directorate",COI COMMUNICATIONS,996051,2570
"Department for Business, Innovation and Skills","Department for Business, Innovation and Skills",18/05/10,External Training,Business Group - Business Competitiveness - Secretariat/GRU,NATIONAL SCHOOL OF GOVERNMENT,996126,2500
"Department for Business, Innovation and Skills","Department for Business, Innovation and Skills",18/05/10,Hire of Agency Staff (Clerical/Secretariat/Other),Ministerial and Parliamentary Support Team - Ministerial and Parliamentary Support Team,OFFICE ANGELS LTD,995942,505.344
"Department for Business, Innovation and Skills","Department for Business, Innovation and Skills",18/05/10,Mobile Line Rental,Ministerial and Parliamentary Support Team - Ministerial and Parliamentary Support Team,VODAFONE LTD,995902,-739.772
"Department for Business, Innovation and Skills","Department for Business, Innovation and Skills",18/05/10,Mobile Line Rental,Ministerial and Parliamentary Support Team - Ministerial and Parliamentary Support Team,VODAFONE LTD,995902,739.772
"Department for Business, Innovation and Skills","Department for Business, Innovation and Skills",18/05/10,Mobile Line Rental,Ministerial and Parliamentary Support Team - Ministerial and Parliamentary Support Team,VODAFONE LTD,995902,755.854
"Department for Business, Innovation and Skills","Department for Business, Innovation and Skills",18/05/10,External Training,"Legal, People & Communications Group - HRCM - Human Resources and Change Management Directorate",YOUNG SAMUEL CHAMBERS (YSC) LTD,996115,4900
"Department for Business, Innovation and Skills","Department for Business, Innovation and Skills",18/05/10,Hospitality - UK,"Legal, People & Communications Group - Communications Directorate",ZEST 4 FOOD LTD,995925,-14.335
"Department for Business, Innovation and Skills","Department for Business, Innovation and Skills",18/05/10,Telecommunications,Finance & Commercial Group - Information and Workplace Strategies,BRITISH TELECOMMUNICATIONS plc,996092,-52.762
"Department for Business, Innovation and Skills","Department for Business, Innovation and Skills",18/05/10,Telecommunications,Finance & Commercial Group - Information and Workplace Strategies,BRITISH TELECOMMUNICATIONS plc,996072,-52.578
"Department for Business, Innovation and Skills","Department for Business, Innovation and Skills",18/05/10,Other Training Costs,"Legal, People & Communications Group - HRCM - Human Resources and Change Management Directorate",CHRISTIANS IN GOVERNMENT UK,996132,700
"Department for Business, Innovation and Skills","Department for Business, Innovation and Skills",18/05/10,Maintenance,Finance & Commercial Group - Information and Workplace Strategies,COFELY LTD,995941,-3085.25
"Department for Business, Innovation and Skills","Department for Business, Innovation and Skills",18/05/10,Maintenance,Finance & Commercial Group - Information and Workplace Strategies,COFELY LTD,995940,541.52
"Department for Business, Innovation and Skills","Department for Business, Innovation and Skills",18/05/10,Maintenance,Finance & Commercial Group - Information and Workplace Strategies,COFELY LTD,995944,2767.86
"Department for Business, Innovation and Skills","Department for Business, Innovation and Skills",18/05/10,Maintenance,Finance & Commercial Group - Information and Workplace Strategies,COFELY LTD,995941,3085.25
"Department for Business, Innovation and Skills","Department for Business, Innovation and Skills",18/05/10,Maintenance,Finance & Commercial Group - Information and Workplace Strategies,COFELY LTD,995941,3085.25
"Department for Business, Innovation and Skills","Department for Business, Innovation and Skills",18/05/10,Maintenance,Finance & Commercial Group - Information and Workplace Strategies,COFELY LTD,995937,3906.2
"Department for Business, Innovation and Skills","Department for Business, Innovation and Skills",18/05/10,Maintenance,Finance & Commercial Group - Information and Workplace Strategies,COFELY LTD,995935,4308.43
"Department for Business, Innovation and Skills","Department for Business, Innovation and Skills",18/05/10,Maintenance,Finance & Commercial Group - Information and Workplace Strategies,COFELY LTD,995931,5171
"Department for Business, Innovation and Skills","Department for Business, Innovation and Skills",18/05/10,Maintenance,Finance & Commercial Group - Information and Workplace Strategies,COFELY LTD,995946,17988.83
"Department for Business, Innovation and Skills","Department for Business, Innovation and Skills",18/05/10,Maintenance,Finance & Commercial Group - Information and Workplace Strategies,COFELY LTD,995927,18527.18
"Department for Business, Innovation and Skills","Department for Business, Innovation and Skills",18/05/10,Maintenance,Finance & Commercial Group - Information and Workplace Strategies,COOLMATION LTD,995947,2160
"Department for Business, Innovation and Skills","Department for Business, Innovation and Skills",18/05/10,Gas,Finance & Commercial Group - Information and Workplace Strategies,CORONA ENERGY,995926,13717.52575
"Department for Business, Innovation and Skills","Department for Business, Innovation and Skills",18/05/10,Pension APAC (DWP),"Legal, People & Communications Group - HRCM - Human Resources and Change Management Directorate",DEPARTMENT FOR WORK AND PENSIONS (DWP),996009,-25872.83
"Department for Business, Innovation and Skills","Department for Business, Innovation and Skills",18/05/10,Pension APAC (DWP),"Legal, People & Communications Group - HRCM - Human Resources and Change Management Directorate",DEPARTMENT FOR WORK AND PENSIONS (DWP),996009,22019.43
"Department for Business, Innovation and Skills","Department for Business, Innovation and Skills",18/05/10,Pension APAC (DWP),"Legal, People & Communications Group - HRCM - Human Resources and Change Management Directorate",DEPARTMENT FOR WORK AND PENSIONS (DWP),996009,25872.83
"Department for Business, Innovation and Skills","Department for Business, Innovation and Skills",18/05/10,Other Training Costs,"Legal, People & Communications Group - HRCM - Human Resources and Change Management Directorate",EMPLOYERS FORUM ON DISABILITY.,995760,6900
"Department for Business, Innovation and Skills","Department for Business, Innovation and Skills",18/05/10,Standard Desktop Services (PFI),Finance & Commercial Group - Information and Workplace Strategies,FUJITSU SERVICES LTD,995980,916.74
"Department for Business, Innovation and Skills","Department for Business, Innovation and Skills",18/05/10,Standard Desktop Plus Service (PFI),Finance & Commercial Group - Information and Workplace Strategies,FUJITSU SERVICES LTD,996006,781.55
"Department for Business, Innovation and Skills","Department for Business, Innovation and Skills",18/05/10,Standard Desktop Plus Service (PFI),Finance & Commercial Group - Information and Workplace Strategies,FUJITSU SERVICES LTD,996006,3589.85
"Department for Business, Innovation and Skills","Department for Business, Innovation and Skills",18/05/10,Flexible Computing Service (PFI),Finance & Commercial Group - Information and Workplace Strategies,FUJITSU SERVICES LTD,996066,59400
"Department for Business, Innovation and Skills","Department for Business, Innovation and Skills",18/05/10,Refuse Disposals,Finance & Commercial Group - Information and Workplace Strategies,IRON MOUNTAIN LTD,995949,500
"Department for Business, Innovation and Skills","Department for Business, Innovation and Skills",18/05/10,Refuse Disposals,Finance & Commercial Group - Information and Workplace Strategies,IRON MOUNTAIN LTD,995949,1330.5
"Department for Business, Innovation and Skills","Department for Business, Innovation and Skills",18/05/10,Refuse Disposals,Finance & Commercial Group - Information and Workplace Strategies,IRON MOUNTAIN LTD,995949,1384.4
"Department for Business, Innovation and Skills","Department for Business, Innovation and Skills",18/05/10,Refuse Disposals,Finance & Commercial Group - Information and Workplace Strategies,IRON MOUNTAIN LTD,995949,2600.4
"Department for Business, Innovation and Skills","Department for Business, Innovation and Skills",18/05/10,Refuse Disposals,Finance & Commercial Group - Information and Workplace Strategies,IRON MOUNTAIN LTD,995949,4689.5
"Department for Business, Innovation and Skills","Department for Business, Innovation and Skills",18/05/10,InfoSource Desktop Information and Research Services,Finance & Commercial Group - Information and Workplace Strategies,LEXISNEXIS UK,995984,1894
"Department for Business, Innovation and Skills","Department for Business, Innovation and Skills",18/05/10,InfoSource Desktop Information and Research Services,Finance & Commercial Group - Information and Workplace Strategies,LEXISNEXIS UK,995985,12161.12
"Department for Business, Innovation and Skills","Department for Business, Innovation and Skills",18/05/10,Maintenance,Finance & Commercial Group - Information and Workplace Strategies,M J FERGUSON LTD,995820,-446.34
"Department for Business, Innovation and Skills","Department for Business, Innovation and Skills",18/05/10,ICT Maintenance & Upkeep,Finance & Commercial Group - Information and Workplace Strategies,PARITY RESOURCES LTD,995549,14664
"Department for Business, Innovation and Skills","Department for Business, Innovation and Skills",18/05/10,ADP Training,"Legal, People & Communications Group - HRCM - Human Resources and Change Management Directorate","Personal Expense, Name Witheld",10269358,562.5
"Department for Business, Innovation and Skills","Department for Business, Innovation and Skills",18/05/10,InfoSource Desktop Information and Research Services,Finance & Commercial Group - Information and Workplace Strategies,PROQUEST INFORMATION & LEARNING LTD,995953,2027
"Department for Business, Innovation and Skills","Department for Business, Innovation and Skills",18/05/10,ICT Maintenance & Upkeep,Finance & Commercial Group - Information and Workplace Strategies,PURCHASING CARD CONSULTANCY LTD,995964,8000
"Department for Business, Innovation and Skills","Department for Business, Innovation and Skills",18/05/10,Refuse Disposals,Finance & Commercial Group - Information and Workplace Strategies,SITA UK LTD,995922,649.67
"Department for Business, Innovation and Skills","Department for Business, Innovation and Skills",18/05/10,Hire of Reprographic Equipment,Finance & Commercial Group - Information and Workplace Strategies,SOUTH EAST DRAWING OFFICE LTD,996091,734.14
"Department for Business, Innovation and Skills","Department for Business, Innovation and Skills",18/05/10,Other Training Costs,"Legal, People & Communications Group - HRCM - Human Resources and Change Management Directorate",THE BDP MEDIA GROUP LTD,996083,2109.125
"Department for Business, Innovation and Skills","Department for Business, Innovation and Skills",18/05/10,ICT Maintenance & Upkeep,Finance & Commercial Group - Information and Workplace Strategies,THE NATIONAL ARCHIVES,995910,55000
"Department for Business, Innovation and Skills","Department for Business, Innovation and Skills",18/05/10,Press Office Facilities,"Legal, People & Communications Group - Communications Directorate",THE NEWSPAPER LICENSING AGENCY LTD,996120,85406.23
"Department for Business, Innovation and Skills","Department for Business, Innovation and Skills",18/05/10,Child Care,"Legal, People & Communications Group - HRCM - Human Resources and Change Management Directorate",TINIES UK LTD,996130,2562
"Department for Business, Innovation and Skills","Department for Business, Innovation and Skills",18/05/10,Other IT Costs (Programme),Fair Markets Group Summary - Europe Directorate,PARITY RESOURCES LTD,995565,5922
"Department for Business, Innovation and Skills","Department for Business, Innovation and Skills",18/05/10,Capital Grants - Other,"Innovation, Enterprise & Better Regulation Executive - Enterprise Directorate",ROYAL BRITISH LEGION,996133,2000000
"Department for Business, Innovation and Skills","Department for Business, Innovation and Skills",18/05/10,Conference and Exhibition Services (Programme),"Business Group - Solutions for Business, Low Carbon & Services",PROMOTIONAL LOGISTICS LTD,995533,889.35
"Department for Business, Innovation and Skills","Department for Business, Innovation and Skills",18/05/10,Air Fares  - Overseas (Programme),SCIENCE & RESEARCH GROUP - RESEARCH BASE,UNIVERSITY OF LEEDS,996096,958.63
"Department for Business, Innovation and Skills","Department for Business, Innovation and Skills",18/05/10,Technical Support,Business Group - Advanced Manufacturing Industries,HEALTH & SAFETY EXECUTIVE,996121,10634.41
"Department for Business, Innovation and Skills","Department for Business, Innovation and Skills",18/05/10,Outsourced Programme Management Services,Universities and Skills Group - Further Education,CORE ACHIEVEMENT LTD,995916,2793.23
"Department for Business, Innovation and Skills","Department for Business, Innovation and Skills",19/05/10,Estates Consultancy and Professional Services,Business Group - Economic Development Directorate,KNIGHT FRANK LLP,996176,3106.25
"Department for Business, Innovation and Skills","Department for Business, Innovation and Skills",19/05/10,Leased Buildings - Clearing,Finance & Commercial Group - Information and Workplace Strategies,HUNTERS CONTRACTS (SCOTLAND) LTD T/A HCS BUSINESS INTERIORS,995751,3169.5625
"Department for Business, Innovation and Skills","Department for Business, Innovation and Skills",19/05/10,Leased Buildings - Clearing,Finance & Commercial Group - Information and Workplace Strategies,HUNTERS CONTRACTS (SCOTLAND) LTD T/A HCS BUSINESS INTERIORS,995751,12860.375
"Department for Business, Innovation and Skills","Department for Business, Innovation and Skills",19/05/10,BIS Tax Deductions,Corporate Balance,ZZZZINLAND REVENUE,996217,511.22
"Department for Business, Innovation and Skills","Department for Business, Innovation and Skills",19/05/10,Board Members Tax Deductions (Suspense Account),Corporate Balance,ZZZZINLAND REVENUE,996218,22455.4
"Department for Business, Innovation and Skills","Department for Business, Innovation and Skills",19/05/10,Board Members National Insurance Deductions (Suspense Account),Corporate Balance,ZZZZINLAND REVENUE,996215,10147.69
"Department for Business, Innovation and Skills","Department for Business, Innovation and Skills",19/05/10,Additions - Enterprise Equity Investments,"Innovation, Enterprise & Better Regulation Executive - Enterprise Directorate",BERR EQUITY INVESTMENT PROGRAMMES (CAPITAL),996167,21093.71
"Department for Business, Innovation and Skills","Department for Business, Innovation and Skills",19/05/10,Additions - Enterprise Equity Investments,"Innovation, Enterprise & Better Regulation Executive - Enterprise Directorate",BERR EQUITY INVESTMENT PROGRAMMES (CAPITAL),996167,288955.88
"Department for Business, Innovation and Skills","Department for Business, Innovation and Skills",19/05/10,Additions - Enterprise Equity Investments,"Innovation, Enterprise & Better Regulation Executive - Enterprise Directorate",BERR EQUITY INVESTMENT PROGRAMMES (CAPITAL),996167,353300.33
"Department for Business, Innovation and Skills","Department for Business, Innovation and Skills",19/05/10,UK Subscriptions,SCIENCE & RESEARCH GROUP - UK Space Agency,EURISY,995237,8670
"Department for Business, Innovation and Skills","Department for Business, Innovation and Skills",19/05/10,Additions - Enterprise Equity Investments,"Innovation, Enterprise & Better Regulation Executive - Enterprise Directorate",BERR EQUITY INVESTMENT PROGRAMMES (CAPITAL),996171,32500
"Department for Business, Innovation and Skills","Department for Business, Innovation and Skills",19/05/10,Additions - Enterprise Equity Investments,"Innovation, Enterprise & Better Regulation Executive - Enterprise Directorate",BERR EQUITY INVESTMENT PROGRAMMES (CAPITAL),996171,647888.42
"Department for Business, Innovation and Skills","Department for Business, Innovation and Skills",19/05/10,Grants - Non Statutory - Current - Other,Universities and Skills Group - Further Education,STANDARDS VERIFICATION UK LTD,996271,36018
"Department for Business, Innovation and Skills","Department for Business, Innovation and Skills",19/05/10,Outsourced Programme Management Services,Universities and Skills Group - Further Education,PROMOTIONAL LOGISTICS LTD,993885,1450.1
"Department for Business, Innovation and Skills","Department for Business, Innovation and Skills",19/05/10,Departmental Sponsored Training (Programme),Universities and Skills Group - Learners,MOD - (THE ACCOUNTING OFFICER MINISTRY OF DEFENCE),996044,-2225
"Department for Business, Innovation and Skills","Department for Business, Innovation and Skills",19/05/10,Departmental Sponsored Training (Programme),Universities and Skills Group - Learners,MOD - (THE ACCOUNTING OFFICER MINISTRY OF DEFENCE),996050,-2225
"Department for Business, Innovation and Skills","Department for Business, Innovation and Skills",19/05/10,Departmental Sponsored Training (Programme),Universities and Skills Group - Learners,MOD - (THE ACCOUNTING OFFICER MINISTRY OF DEFENCE),996046,-1225
"Department for Business, Innovation and Skills","Department for Business, Innovation and Skills",19/05/10,Departmental Sponsored Training (Programme),Universities and Skills Group - Learners,MOD - (THE ACCOUNTING OFFICER MINISTRY OF DEFENCE),996053,-1225
"Department for Business, Innovation and Skills","Department for Business, Innovation and Skills",19/05/10,Departmental Sponsored Training (Programme),Universities and Skills Group - Learners,MOD - (THE ACCOUNTING OFFICER MINISTRY OF DEFENCE),996054,-1225
"Department for Business, Innovation and Skills","Department for Business, Innovation and Skills",19/05/10,Departmental Sponsored Training (Programme),Universities and Skills Group - Learners,MOD - (THE ACCOUNTING OFFICER MINISTRY OF DEFENCE),996046,1225
"Department for Business, Innovation and Skills","Department for Business, Innovation and Skills",19/05/10,Departmental Sponsored Training (Programme),Universities and Skills Group - Learners,MOD - (THE ACCOUNTING OFFICER MINISTRY OF DEFENCE),996046,1225
"Department for Business, Innovation and Skills","Department for Business, Innovation and Skills",19/05/10,Departmental Sponsored Training (Programme),Universities and Skills Group - Learners,MOD - (THE ACCOUNTING OFFICER MINISTRY OF DEFENCE),996053,1225
"Department for Business, Innovation and Skills","Department for Business, Innovation and Skills",19/05/10,Departmental Sponsored Training (Programme),Universities and Skills Group - Learners,MOD - (THE ACCOUNTING OFFICER MINISTRY OF DEFENCE),996053,1225
"Department for Business, Innovation and Skills","Department for Business, Innovation and Skills",19/05/10,Departmental Sponsored Training (Programme),Universities and Skills Group - Learners,MOD - (THE ACCOUNTING OFFICER MINISTRY OF DEFENCE),996054,1225
"Department for Business, Innovation and Skills","Department for Business, Innovation and Skills",19/05/10,Departmental Sponsored Training (Programme),Universities and Skills Group - Learners,MOD - (THE ACCOUNTING OFFICER MINISTRY OF DEFENCE),996054,1225
"Department for Business, Innovation and Skills","Department for Business, Innovation and Skills",19/05/10,Departmental Sponsored Training (Programme),Universities and Skills Group - Learners,MOD - (THE ACCOUNTING OFFICER MINISTRY OF DEFENCE),996044,2225
"Department for Business, Innovation and Skills","Department for Business, Innovation and Skills",19/05/10,Departmental Sponsored Training (Programme),Universities and Skills Group - Learners,MOD - (THE ACCOUNTING OFFICER MINISTRY OF DEFENCE),996044,2225
"Department for Business, Innovation and Skills","Department for Business, Innovation and Skills",19/05/10,Departmental Sponsored Training (Programme),Universities and Skills Group - Learners,MOD - (THE ACCOUNTING OFFICER MINISTRY OF DEFENCE),996050,2225
"Department for Business, Innovation and Skills","Department for Business, Innovation and Skills",19/05/10,Departmental Sponsored Training (Programme),Universities and Skills Group - Learners,MOD - (THE ACCOUNTING OFFICER MINISTRY OF DEFENCE),996050,2225
"Department for Business, Innovation and Skills","Department for Business, Innovation and Skills",19/05/10,Consultancy Advice Provided From Third Parties,Universities and Skills Group - Learners,SHM PRODUCTIONS LTD,996269,12729.35075
"Department for Business, Innovation and Skills","Department for Business, Innovation and Skills",19/05/10,Criminal Law and Prosecution Work,"Legal, People & Communications Group - Legal",DARBYS,996163,879.19375
"Department for Business, Innovation and Skills","Department for Business, Innovation and Skills",19/05/10,Criminal Law and Prosecution Work,"Legal, People & Communications Group - Legal",MLM,996169,-661.8825
"Department for Business, Innovation and Skills","Department for Business, Innovation and Skills",19/05/10,Criminal Law and Prosecution Work,"Legal, People & Communications Group - Legal",MLM,996169,661.8825
"Department for Business, Innovation and Skills","Department for Business, Innovation and Skills",19/05/10,Criminal Law and Prosecution Work,"Legal, People & Communications Group - Legal",MLM,996169,676.27125
"Department for Business, Innovation and Skills","Department for Business, Innovation and Skills",19/05/10,Criminal Law and Prosecution Work,"Legal, People & Communications Group - Legal",CAMERON BROWN,996182,569.875
"Department for Business, Innovation and Skills","Department for Business, Innovation and Skills",19/05/10,Criminal Law and Prosecution Work,"Legal, People & Communications Group - Legal",CARPE-DATUM,996174,2533.3
"Department for Business, Innovation and Skills","Department for Business, Innovation and Skills",19/05/10,Economic Consultancy & Research,Fair Markets Group Summary - Employment Relations,NATIONAL CENTRE FOR SOCIAL RESEARCH(NATCEN),996259,64647.16
"Department for Business, Innovation and Skills","Department for Business, Innovation and Skills",19/05/10,External Training,Finance & Commercial Group - Finance Group,NATIONAL SCHOOL OF GOVERNMENT (CMPS),996270,670
"Department for Business, Innovation and Skills","Department for Business, Innovation and Skills",19/05/10,Hotels,Office of Manpower Economics - Office of Manpower Economics,"Personal Expense, Name Witheld",10269404,652.5
"Department for Business, Innovation and Skills","Department for Business, Innovation and Skills",19/05/10,Hire of Agency Staff (Clerical/Secretariat/Other),Finance & Commercial Group - Information and Workplace Strategies,TFPL LTD,996137,1021.122
"Department for Business, Innovation and Skills","Department for Business, Innovation and Skills",19/05/10,External Training,Fair Markets Group Summary - ECO,THE CREATIVE MANAGEMENT CONSULTANCY LTD,996168,-4320
"Department for Business, Innovation and Skills","Department for Business, Innovation and Skills",19/05/10,External Training,Fair Markets Group Summary - ECO,THE CREATIVE MANAGEMENT CONSULTANCY LTD,996168,3600
"Department for Business, Innovation and Skills","Department for Business, Innovation and Skills",19/05/10,External Training,Fair Markets Group Summary - ECO,THE CREATIVE MANAGEMENT CONSULTANCY LTD,996168,4320
"Department for Business, Innovation and Skills","Department for Business, Innovation and Skills",19/05/10,Other Training Costs,GOVERNMENT OFFICE FOR SCIENCE - GOVERNMENT OFFICE FOR SCIENCE,WILSON SHERRIFF LTD,996224,1300.8
"Department for Business, Innovation and Skills","Department for Business, Innovation and Skills",19/05/10,Accounting Services,Finance & Commercial Group - Finance Group,AMEY COMMUNITY LTD,996235,-96229
"Department for Business, Innovation and Skills","Department for Business, Innovation and Skills",19/05/10,Accounting Services,Finance & Commercial Group - Finance Group,AMEY COMMUNITY LTD,996244,915.95
"Department for Business, Innovation and Skills","Department for Business, Innovation and Skills",19/05/10,Accounting Services,Finance & Commercial Group - Finance Group,AMEY COMMUNITY LTD,996249,4376
"Department for Business, Innovation and Skills","Department for Business, Innovation and Skills",19/05/10,Accounting Services,Finance & Commercial Group - Finance Group,AMEY COMMUNITY LTD,996239,39367.22
"Department for Business, Innovation and Skills","Department for Business, Innovation and Skills",19/05/10,Accounting Services,Finance & Commercial Group - Finance Group,AMEY COMMUNITY LTD,996235,95024.76
"Department for Business, Innovation and Skills","Department for Business, Innovation and Skills",19/05/10,Accounting Services,Finance & Commercial Group - Finance Group,AMEY COMMUNITY LTD,996235,96229
"Department for Business, Innovation and Skills","Department for Business, Innovation and Skills",19/05/10,Accounting Services,Finance & Commercial Group - Finance Group,AMEY COMMUNITY LTD,996235,235001.46
"Department for Business, Innovation and Skills","Department for Business, Innovation and Skills",19/05/10,ICT Maintenance & Upkeep,Finance & Commercial Group - Information and Workplace Strategies,ELAN COMPUTING LTD,996195,8782.8
"Department for Business, Innovation and Skills","Department for Business, Innovation and Skills",19/05/10,ICT Maintenance & Upkeep,Finance & Commercial Group - Information and Workplace Strategies,ELAN COMPUTING LTD,996194,9912.3
"Department for Business, Innovation and Skills","Department for Business, Innovation and Skills",19/05/10,Standard Desktop Services (PFI),Finance & Commercial Group - Information and Workplace Strategies,FUJITSU SERVICES LTD,995770,761.77
"Department for Business, Innovation and Skills","Department for Business, Innovation and Skills",19/05/10,Standard Desktop Services (PFI),Finance & Commercial Group - Information and Workplace Strategies,FUJITSU SERVICES LTD,995972,5780.14
"Department for Business, Innovation and Skills","Department for Business, Innovation and Skills",19/05/10,Standard Desktop Plus Service (PFI),Finance & Commercial Group - Information and Workplace Strategies,FUJITSU SERVICES LTD,995767,-141.02
"Department for Business, Innovation and Skills","Department for Business, Innovation and Skills",19/05/10,Standard Desktop Plus Service (PFI),Finance & Commercial Group - Information and Workplace Strategies,FUJITSU SERVICES LTD,996150,631.01
"Department for Business, Innovation and Skills","Department for Business, Innovation and Skills",19/05/10,Standard Desktop Plus Service (PFI),Finance & Commercial Group - Information and Workplace Strategies,FUJITSU SERVICES LTD,996149,1220.53
"Department for Business, Innovation and Skills","Department for Business, Innovation and Skills",19/05/10,Standard Desktop Plus Service (PFI),Finance & Commercial Group - Information and Workplace Strategies,FUJITSU SERVICES LTD,996139,5157.8
"Department for Business, Innovation and Skills","Department for Business, Innovation and Skills",19/05/10,ICT Infrastructure Specific Service (PFI),Finance & Commercial Group - Information and Workplace Strategies,FUJITSU SERVICES LTD,996148,530.45
"Department for Business, Innovation and Skills","Department for Business, Innovation and Skills",19/05/10,ICT Business Specific Application Services (PFI),Finance & Commercial Group - Information and Workplace Strategies,FUJITSU SERVICES LTD,995772,4388.33
"Department for Business, Innovation and Skills","Department for Business, Innovation and Skills",19/05/10,ICT Maintenance & Upkeep (PFI),Finance & Commercial Group - Information and Workplace Strategies,FUJITSU SERVICES LTD,992647,13302.75
"Department for Business, Innovation and Skills","Department for Business, Innovation and Skills",19/05/10,CCTA Services,Finance & Commercial Group - Information and Workplace Strategies,OGC BUYING SOLUTIONS,996022,-342483.5815
"Department for Business, Innovation and Skills","Department for Business, Innovation and Skills",19/05/10,CCTA Services,Finance & Commercial Group - Information and Workplace Strategies,OGC BUYING SOLUTIONS,996023,23909.82825
"Department for Business, Innovation and Skills","Department for Business, Innovation and Skills",19/05/10,CCTA Services,Finance & Commercial Group - Information and Workplace Strategies,OGC BUYING SOLUTIONS,996022,342483.5815
"Department for Business, Innovation and Skills","Department for Business, Innovation and Skills",19/05/10,CCTA Services,Finance & Commercial Group - Information and Workplace Strategies,OGC BUYING SOLUTIONS,996022,349928.8768
"Department for Business, Innovation and Skills","Department for Business, Innovation and Skills",19/05/10,ICT Maintenance & Upkeep,Finance & Commercial Group - Information and Workplace Strategies,PARITY RESOURCES LTD,996159,1380
"Department for Business, Innovation and Skills","Department for Business, Innovation and Skills",19/05/10,Gas,Finance & Commercial Group - Information and Workplace Strategies,STOCKTON BOROUGH COUNCIL,995746,-1153.83825
"Department for Business, Innovation and Skills","Department for Business, Innovation and Skills",19/05/10,Gas,Finance & Commercial Group - Information and Workplace Strategies,STOCKTON BOROUGH COUNCIL,995746,546.88
"Department for Business, Innovation and Skills","Department for Business, Innovation and Skills",19/05/10,Gas,Finance & Commercial Group - Information and Workplace Strategies,STOCKTON BOROUGH COUNCIL,995746,1153.72075
"Department for Business, Innovation and Skills","Department for Business, Innovation and Skills",19/05/10,Gas,Finance & Commercial Group - Information and Workplace Strategies,STOCKTON BOROUGH COUNCIL,995746,1153.83825
"Department for Business, Innovation and Skills","Department for Business, Innovation and Skills",19/05/10,Other IT Costs (Programme),Fair Markets Group Summary - Europe Directorate,ELAN COMPUTING LTD,996190,3990
"Department for Business, Innovation and Skills","Department for Business, Innovation and Skills",19/05/10,Other IT Costs (Programme),Fair Markets Group Summary - Europe Directorate,ELAN COMPUTING LTD,996192,5700
"Department for Business, Innovation and Skills","Department for Business, Innovation and Skills",19/05/10,Grants - Non Statutory - Current - Other,Business Group - Life Sciences,MARK GENOVESE,995639,750
"Department for Business, Innovation and Skills","Department for Business, Innovation and Skills",19/05/10,Non-GIA Funding of Bodies (Departmental and Non-Departmental),"Innovation, Enterprise & Better Regulation Executive - Innovation",NATIONAL MEASUREMENT OFFICE,996209,5544000
"Department for Business, Innovation and Skills","Department for Business, Innovation and Skills",19/05/10,Research & Development Expenditure (Programme),GOVERNMENT OFFICE FOR SCIENCE - GOVERNMENT OFFICE FOR SCIENCE,PROMOTIONAL LOGISTICS LTD,995675,1118.25
"Department for Business, Innovation and Skills","Department for Business, Innovation and Skills",19/05/10,Air Fares  - Overseas (Programme),SCIENCE & RESEARCH GROUP - RESEARCH BASE,"Personal Expense, Name Witheld",10269438,1304.33
"Department for Business, Innovation and Skills","Department for Business, Innovation and Skills",19/05/10,Air Fares  - Overseas (Programme),SCIENCE & RESEARCH GROUP - RESEARCH BASE,"Personal Expense, Name Witheld",10269425,3294
"Department for Business, Innovation and Skills","Department for Business, Innovation and Skills",19/05/10,Hotels- Overseas  (Programme),SCIENCE & RESEARCH GROUP - RESEARCH BASE,"Personal Expense, Name Witheld",10269406,1336.4
"Department for Business, Innovation and Skills","Department for Business, Innovation and Skills",19/05/10,Technical Support,Business Group - Advanced Manufacturing Industries,CARTAKEBACK.COM LTD,996247,11700
"Department for Business, Innovation and Skills","Department for Business, Innovation and Skills",19/05/10,Outsourced Programme Management Services,Universities and Skills Group - Higher Education,THE SOCIAL MOBILITY FOUNDATION,996191,22627.64
"Department for Business, Innovation and Skills","Department for Business, Innovation and Skills",19/05/10,Publications (Programme),Universities and Skills Group - Skills Directorate,PROMOTIONAL LOGISTICS LTD,995591,879.66
"Department for Business, Innovation and Skills","Department for Business, Innovation and Skills",19/05/10,Publications (Programme),Universities and Skills Group - Skills Directorate,PROMOTIONAL LOGISTICS LTD,995591,1094.5
"Department for Business, Innovation and Skills","Department for Business, Innovation and Skills",19/05/10,Publications (Programme),Universities and Skills Group - Skills Directorate,PROMOTIONAL LOGISTICS LTD,995591,2848.95
"Department for Business, Innovation and Skills","Department for Business, Innovation and Skills",20/05/10,Financial Advice and Services,Business Group - Advanced Manufacturing Industries,INTERIM PERFORMERS LTD,995986,2179.625
"Department for Business, Innovation and Skills","Department for Business, Innovation and Skills",20/05/10,Financial Advice and Services,Business Group - Advanced Manufacturing Industries,INTERIM PERFORMERS LTD,995987,3113.75
"Department for Business, Innovation and Skills","Department for Business, Innovation and Skills",20/05/10,Payments to Expotel for Hotel Costs Contract,Finance & Commercial Group - Finance Group,EXPOTEL HOTEL RESERVATIONS LTD,996283,-0.10575
"Department for Business, Innovation and Skills","Department for Business, Innovation and Skills",20/05/10,Payments to Expotel for Hotel Costs Contract,Finance & Commercial Group - Finance Group,EXPOTEL HOTEL RESERVATIONS LTD,996282,3449.81175
"Department for Business, Innovation and Skills","Department for Business, Innovation and Skills",20/05/10,Payments to Expotel for Hotel Costs Contract,Finance & Commercial Group - Finance Group,EXPOTEL HOTEL RESERVATIONS LTD,996283,10381.172
"Department for Business, Innovation and Skills","Department for Business, Innovation and Skills",20/05/10,Payments to Expotel for Hotel Costs Contract,Finance & Commercial Group - Finance Group,EXPOTEL HOTEL RESERVATIONS LTD,996284,12074.12375
"Department for Business, Innovation and Skills","Department for Business, Innovation and Skills",20/05/10,Leased Buildings - Clearing,Finance & Commercial Group - Information and Workplace Strategies,OFFICE PROJECTS LTD,996319,2275.975
"Department for Business, Innovation and Skills","Department for Business, Innovation and Skills",20/05/10,Leased Buildings - Clearing,Finance & Commercial Group - Information and Workplace Strategies,OFFICE PROJECTS LTD,996320,4852.87925
"Department for Business, Innovation and Skills","Department for Business, Innovation and Skills",20/05/10,Leased Buildings - Clearing,Finance & Commercial Group - Information and Workplace Strategies,OFFICE PROJECTS LTD,996317,27109.6
"Department for Business, Innovation and Skills","Department for Business, Innovation and Skills",20/05/10,Leased Buildings - Clearing,Finance & Commercial Group - Information and Workplace Strategies,OFFICE PROJECTS LTD,996317,112716.9628
"Department for Business, Innovation and Skills","Department for Business, Innovation and Skills",20/05/10,Leased Buildings - Clearing,Finance & Commercial Group - Information and Workplace Strategies,OFFICE PROJECTS LTD,996317,129250
"Department for Business, Innovation and Skills","Department for Business, Innovation and Skills",20/05/10,Leased Buildings - Clearing,Finance & Commercial Group - Information and Workplace Strategies,OFFICE PROJECTS LTD,996317,286779.336
"Department for Business, Innovation and Skills","Department for Business, Innovation and Skills",20/05/10,Additions - Enterprise Equity Investments,"Innovation, Enterprise & Better Regulation Executive - Enterprise Directorate",BERR EQUITY INVESTMENT PROGRAMMES (CAPITAL),996299,91333.33
"Department for Business, Innovation and Skills","Department for Business, Innovation and Skills",20/05/10,Criminal Law and Prosecution Work,"Legal, People & Communications Group - Legal",CHRISTOPHER BADGER,996177,1496.95
"Department for Business, Innovation and Skills","Department for Business, Innovation and Skills",20/05/10,Criminal Law and Prosecution Work,"Legal, People & Communications Group - Legal",CHRISTOPHER BADGER,996179,2083.275
"Department for Business, Innovation and Skills","Department for Business, Innovation and Skills",20/05/10,Criminal Law and Prosecution Work,"Legal, People & Communications Group - Legal",CARPE-DATUM,996196,4087.825
"Department for Business, Innovation and Skills","Department for Business, Innovation and Skills",20/05/10,Buildings Insurance (Programme),Finance & Commercial Group - Information and Workplace Strategies,NOEL O'CALLAGHAN GBP,996338,2390.64
"Department for Business, Innovation and Skills","Department for Business, Innovation and Skills",20/05/10,External Training,Universities and Skills Group - USG Admin,NATIONAL SCHOOL OF GOVERNMENT (CMPS),995782,875
"Department for Business, Innovation and Skills","Department for Business, Innovation and Skills",20/05/10,Hire of Agency Staff (Clerical/Secretariat/Other),Ministerial and Parliamentary Support Team - Ministerial and Parliamentary Support Team,OFFICE ANGELS LTD,996316,508.48125
"Department for Business, Innovation and Skills","Department for Business, Innovation and Skills",20/05/10,Other Overseas T&S,Business Group - Information Economy,"Personal Expense, Name Witheld",10269446,692.58
"Department for Business, Innovation and Skills","Department for Business, Innovation and Skills",20/05/10,External Training,Strategy Group - Strategy Directorate,"Personal Expense, Name Witheld",10269468,825
"Department for Business, Innovation and Skills","Department for Business, Innovation and Skills",20/05/10,Finance & Accounting Advice,Finance & Commercial Group - Finance Group,PRICEWATERHOUSECOOPERS LLP,996322,768
"Department for Business, Innovation and Skills","Department for Business, Innovation and Skills",20/05/10,Finance & Accounting Advice,Finance & Commercial Group - Finance Group,PRICEWATERHOUSECOOPERS LLP,996322,1608
"Department for Business, Innovation and Skills","Department for Business, Innovation and Skills",20/05/10,External Training,SCIENCE & RESEARCH GROUP - RESEARCH BASE,THE OPEN UNIVERSITY,996311,2965
"Department for Business, Innovation and Skills","Department for Business, Innovation and Skills",20/05/10,Other Staff Welfare Costs,Universities and Skills Group - USG Admin,WINDSOR FELLOWSHIP,996252,4500
"Department for Business, Innovation and Skills","Department for Business, Innovation and Skills",20/05/10,Catering Services,Finance & Commercial Group - Information and Workplace Strategies,BAXTERSTOREY LTD,996321,997.5
"Department for Business, Innovation and Skills","Department for Business, Innovation and Skills",20/05/10,ADP Training,"Legal, People & Communications Group - HRCM - Human Resources and Change Management Directorate",NATIONAL SCHOOL OF GOVERNMENT (CMPS),995680,2500
"Department for Business, Innovation and Skills","Department for Business, Innovation and Skills",20/05/10,Refuse Disposals,Finance & Commercial Group - Information and Workplace Strategies,SITA UK LTD,995909,-4203.5
"Department for Business, Innovation and Skills","Department for Business, Innovation and Skills",20/05/10,Refuse Disposals,Finance & Commercial Group - Information and Workplace Strategies,SITA UK LTD,995909,-7.5
"Department for Business, Innovation and Skills","Department for Business, Innovation and Skills",20/05/10,Refuse Disposals,Finance & Commercial Group - Information and Workplace Strategies,SITA UK LTD,995909,4203.5
"Department for Business, Innovation and Skills","Department for Business, Innovation and Skills",20/05/10,Refuse Disposals,Finance & Commercial Group - Information and Workplace Strategies,SITA UK LTD,995909,4203.5
"Department for Business, Innovation and Skills","Department for Business, Innovation and Skills",20/05/10,Hire of Reprographic Equipment,Finance & Commercial Group - Information and Workplace Strategies,XEROX (UK) LTD,989437,-8027.23
"Department for Business, Innovation and Skills","Department for Business, Innovation and Skills",20/05/10,Hire of Reprographic Equipment,Finance & Commercial Group - Information and Workplace Strategies,XEROX (UK) LTD,996310,42551.22675
"Department for Business, Innovation and Skills","Department for Business, Innovation and Skills",20/05/10,Grants - Non Statutory - Current - Other,"Business Group - Solutions for Business, Low Carbon & Services",THE NATIONAL ARCHIVES,995491,9139
"Department for Business, Innovation and Skills","Department for Business, Innovation and Skills",20/05/10,Grants - Non Statutory - Current - Other,"Business Group - Solutions for Business, Low Carbon & Services",THE NATIONAL ARCHIVES,995491,273588
"Department for Business, Innovation and Skills","Department for Business, Innovation and Skills",20/05/10,Research & Development Expenditure (Programme),GOVERNMENT OFFICE FOR SCIENCE - GOVERNMENT OFFICE FOR SCIENCE,Name withheld - data protection,990320,2211.777306
"Department for Business, Innovation and Skills","Department for Business, Innovation and Skills",20/05/10,Research & Development Expenditure (Programme),GOVERNMENT OFFICE FOR SCIENCE - GOVERNMENT OFFICE FOR SCIENCE,NORTHERN IRELAND ENVIRONMENT LINK,996314,500
"Department for Business, Innovation and Skills","Department for Business, Innovation and Skills",20/05/10,Air Fares  - Overseas (Programme),SCIENCE & RESEARCH GROUP - RESEARCH BASE,"Personal Expense, Name Witheld",10269445,1231.04
"Department for Business, Innovation and Skills","Department for Business, Innovation and Skills",20/05/10,Hotels- Overseas  (Programme),SCIENCE & RESEARCH GROUP - RESEARCH BASE,"Personal Expense, Name Witheld",10269443,513.18
"Department for Business, Innovation and Skills","Department for Business, Innovation and Skills",20/05/10,Subsistence Payments- Overseas (Programme),SCIENCE & RESEARCH GROUP - RESEARCH BASE,"Personal Expense, Name Witheld",10269443,1050
"Department for Business, Innovation and Skills","Department for Business, Innovation and Skills",20/05/10,Taxis (Programme),Universities and Skills Group - Government Skills,PREMIER CARS (CARDIFF) LTD,995825,-12
"Department for Business, Innovation and Skills","Department for Business, Innovation and Skills",20/05/10,Outsourced Programme Management Services,Universities and Skills Group - Further Education & Skills Investment,SUPER STORAGE LTD,996245,-280.692
"Department for Business, Innovation and Skills","Department for Business, Innovation and Skills",20/05/10,Outsourced Programme Management Services,Universities and Skills Group - Further Education,NATIONAL INSTITUTE OF ADULT CONTINUING EDUCATION (ENGLAND AND WALES) NIACE,996334,4259.375
"Department for Business, Innovation and Skills","Department for Business, Innovation and Skills",20/05/10,Outsourced Programme Management Services,Universities and Skills Group - Further Education,NATIONAL INSTITUTE OF ADULT CONTINUING EDUCATION (ENGLAND AND WALES) NIACE,996334,9452.875
"Department for Business, Innovation and Skills","Department for Business, Innovation and Skills",20/05/10,Outsourced Programme Management Services,Universities and Skills Group - Further Education,NATIONAL INSTITUTE OF ADULT CONTINUING EDUCATION (ENGLAND AND WALES) NIACE,996334,10193.125
"Department for Business, Innovation and Skills","Department for Business, Innovation and Skills",20/05/10,Outsourced Programme Management Services,Universities and Skills Group - Further Education,NATIONAL INSTITUTE OF ADULT CONTINUING EDUCATION (ENGLAND AND WALES) NIACE,996334,17009.55
"Department for Business, Innovation and Skills","Department for Business, Innovation and Skills",20/05/10,Outsourced Programme Management Services,Universities and Skills Group - Further Education,NATIONAL INSTITUTE OF ADULT CONTINUING EDUCATION (ENGLAND AND WALES) NIACE,996334,725000
"Department for Business, Innovation and Skills","Department for Business, Innovation and Skills",21/05/10,Non-GIA Funding of Bodies (Departmental and Non-Departmental),Fair Markets Group Summary - Insolvency Service,THE INSOLVENCY SERVICE,996464,4000000
"Department for Business, Innovation and Skills","Department for Business, Innovation and Skills",21/05/10,Criminal Law and Prosecution Work,"Legal, People & Communications Group - Legal",ANDREW LOCKHART,996381,540.5
"Department for Business, Innovation and Skills","Department for Business, Innovation and Skills",21/05/10,Accommodation Rentals (Programme),Finance & Commercial Group - Information and Workplace Strategies,DLA PIPER UK LLP,996352,675000
"Department for Business, Innovation and Skills","Department for Business, Innovation and Skills",21/05/10,Outsourced Programme Management Services,"Legal, People & Communications Group - Communications Directorate",BADENOCH AND CLARK LTD,996409,1095.18225
"Department for Business, Innovation and Skills","Department for Business, Innovation and Skills",21/05/10,Professional Searches,Universities and Skills Group - USG Admin,NEIL STEWART ASSOCIATES,996378,703.825
"Department for Business, Innovation and Skills","Department for Business, Innovation and Skills",21/05/10,Advertising,Shareholder Executive - Shareholder Executive,PETER LOCKYER ADVERTISING LTD,996377,962.84
"Department for Business, Innovation and Skills","Department for Business, Innovation and Skills",21/05/10,Corporate Event Management and Marketing,"Innovation, Enterprise & Better Regulation Executive - Better Regulation Executive (BRE)",UBM INFORMATION LTD,996384,9999.99
"Department for Business, Innovation and Skills","Department for Business, Innovation and Skills",21/05/10,Hire of Agency Staff (Professional/Management),Finance & Commercial Group - Finance Group,VENN GROUP LTD,996360,696.62225
"Department for Business, Innovation and Skills","Department for Business, Innovation and Skills",21/05/10,Training & Skills - Consultancy Advice,GOVERNMENT OFFICE FOR SCIENCE - GOVERNMENT OFFICE FOR SCIENCE,WINDSOR FELLOWSHIP,996231,-9000
"Department for Business, Innovation and Skills","Department for Business, Innovation and Skills",21/05/10,Training & Skills - Consultancy Advice,GOVERNMENT OFFICE FOR SCIENCE - GOVERNMENT OFFICE FOR SCIENCE,WINDSOR FELLOWSHIP,996231,4500
"Department for Business, Innovation and Skills","Department for Business, Innovation and Skills",21/05/10,Training & Skills - Consultancy Advice,GOVERNMENT OFFICE FOR SCIENCE - GOVERNMENT OFFICE FOR SCIENCE,WINDSOR FELLOWSHIP,996231,9000
"Department for Business, Innovation and Skills","Department for Business, Innovation and Skills",21/05/10,Maintenance,Finance & Commercial Group - Information and Workplace Strategies,AZCOM BUSINESS SOLUTIONS LTD,996358,25042
"Department for Business, Innovation and Skills","Department for Business, Innovation and Skills",21/05/10,Hire of Conference Facilities,Finance & Commercial Group - Information and Workplace Strategies,BAXTERSTOREY LTD,996344,32875
"Department for Business, Innovation and Skills","Department for Business, Innovation and Skills",21/05/10,ICT Maintenance & Upkeep,Finance & Commercial Group - Information and Workplace Strategies,CAPGEMINI UK plc,995097,1842.5
"Department for Business, Innovation and Skills","Department for Business, Innovation and Skills",21/05/10,Other Training Costs,"Legal, People & Communications Group - HRCM - Human Resources and Change Management Directorate",CRAVEN PUBLISHING LTD,996468,1295
"Department for Business, Innovation and Skills","Department for Business, Innovation and Skills",21/05/10,Electricity,Finance & Commercial Group - Information and Workplace Strategies,E-ON ENERGY LTD,996356,902.12975
"Department for Business, Innovation and Skills","Department for Business, Innovation and Skills",21/05/10,ADP Training,"Legal, People & Communications Group - HRCM - Human Resources and Change Management Directorate",NATIONAL SCHOOL OF GOVERNMENT (CMPS),996471,805
"Department for Business, Innovation and Skills","Department for Business, Innovation and Skills",21/05/10,Technical Advice / Services & Support,Finance & Commercial Group - Information and Workplace Strategies,OFFICE PROJECTS LTD,996357,16876.67
"Department for Business, Innovation and Skills","Department for Business, Innovation and Skills",21/05/10,ICT Maintenance & Upkeep,Finance & Commercial Group - Information and Workplace Strategies,RUSSAM GMS LTD,996371,2756.25
"Department for Business, Innovation and Skills","Department for Business, Innovation and Skills",21/05/10,Water,Finance & Commercial Group - Information and Workplace Strategies,THAMES WATER UTILITIES LTD,996354,588.92
"Department for Business, Innovation and Skills","Department for Business, Innovation and Skills",21/05/10,Accommodation Rentals,Finance & Commercial Group - Information and Workplace Strategies,THE SCOTTISH GOVERNMENT,996375,41340
"Department for Business, Innovation and Skills","Department for Business, Innovation and Skills",21/05/10,Rates,Finance & Commercial Group - Information and Workplace Strategies,THE SCOTTISH GOVERNMENT,996375,7807.8
"Department for Business, Innovation and Skills","Department for Business, Innovation and Skills",21/05/10,Service Charges,Finance & Commercial Group - Information and Workplace Strategies,THE SCOTTISH GOVERNMENT,996375,15025.77
"Department for Business, Innovation and Skills","Department for Business, Innovation and Skills",21/05/10,ICT Infrastructure Specific Service,Finance & Commercial Group - Information and Workplace Strategies,XMA LTD,996349,878.806
"Department for Business, Innovation and Skills","Department for Business, Innovation and Skills",21/05/10,Grants - Non Statutory - Current - Other,Business Group - Life Sciences,PAUL O'BYRNE,996114,750
"Department for Business, Innovation and Skills","Department for Business, Innovation and Skills",21/05/10,Grants - Non Statutory - Current - Other,Business Group - Life Sciences,ROLAND VAN VOLLENHOVEN,996343,750
"Department for Business, Innovation and Skills","Department for Business, Innovation and Skills",21/05/10,Translation Services (Programme),"Innovation, Enterprise & Better Regulation Executive - Innovation",UBIQUS UK LTD T/A WESTMINSTER SONUS COMMUNICATIONS,996385,5546
"Department for Business, Innovation and Skills","Department for Business, Innovation and Skills",21/05/10,Grants - Statutory - Current - Other,SCIENCE & RESEARCH GROUP - RESEARCH BASE,BARTS AND THE LONDON NHS TRUST,996513,1000000
"Department for Business, Innovation and Skills","Department for Business, Innovation and Skills",21/05/10,Research & Development Expenditure (Programme),GOVERNMENT OFFICE FOR SCIENCE - GOVERNMENT OFFICE FOR SCIENCE,SYNGENTA CROP PROTECTION INC,995021,963.313771
"Department for Business, Innovation and Skills","Department for Business, Innovation and Skills",21/05/10,Hotels- Overseas  (Programme),SCIENCE & RESEARCH GROUP - RESEARCH BASE,FOREIGN AND COMMONWEALTH OFFICE (FCO),994124,-345.11
"Department for Business, Innovation and Skills","Department for Business, Innovation and Skills",21/05/10,Hotels- Overseas  (Programme),SCIENCE & RESEARCH GROUP - RESEARCH BASE,FOREIGN AND COMMONWEALTH OFFICE (FCO),994125,-345.11
"Department for Business, Innovation and Skills","Department for Business, Innovation and Skills",21/05/10,Air Fares  - Overseas (Programme),SCIENCE & RESEARCH GROUP - RESEARCH BASE,NATIONAL SCIENCE TECHNOLOGY AND INNOVATION POLICY OFFICE,996107,1003
"Department for Business, Innovation and Skills","Department for Business, Innovation and Skills",21/05/10,Conference and Exhibition Services (Programme),SCIENCE & RESEARCH GROUP - RESEARCH BASE,UNIVERSITY OF NEWCASTLE UPON TYNE,996264,7869.75
"Department for Business, Innovation and Skills","Department for Business, Innovation and Skills",21/05/10,Hire of Agency Staff (NDPB use only),Shareholder Executive - Shareholder Executive,BROOK STREET (UK) LTD,996394,890.7205
"Department for Business, Innovation and Skills","Department for Business, Innovation and Skills",21/05/10,Cash Expenditure during the Year - Other Programme Provisions,Fair Markets Group Summary - Employment Relations,"Payment Under the Icelandic Trawlerman Compensation Scheme, Name Witheld",10269471,653.7
"Department for Business, Innovation and Skills","Department for Business, Innovation and Skills",21/05/10,Departmental Sponsored Training (Programme),Universities and Skills Group - Government Skills,NATIONAL SCHOOL OF GOVERNMENT,996480,805
"Department for Business, Innovation and Skills","Department for Business, Innovation and Skills",21/05/10,Outsourced Programme Management Services,Universities and Skills Group - Further Education & Skills Investment,SOVEREIGN TRUSTEES LIMITED (TRUSTEE COMPANY OF ADDLESHAW GODDARD),996373,1288.975
"Department for Business, Innovation and Skills","Department for Business, Innovation and Skills",24/05/10,Capital Grants - Other,Business Group - Advanced Manufacturing Industries,ONE NORTH EAST,996552,662979.43
"Department for Business, Innovation and Skills","Department for Business, Innovation and Skills",24/05/10,Capital Grants - Other,Business Group - Advanced Manufacturing Industries,ONE NORTH EAST,996554,771000
"Department for Business, Innovation and Skills","Department for Business, Innovation and Skills",24/05/10,Grants - Non Statutory - Current - Other,Business Group - Information Economy,SOUTH WEST OF ENGLAND REGIONAL DEVELOPMENT AGENCY,996551,95879
"Department for Business, Innovation and Skills","Department for Business, Innovation and Skills",24/05/10,Grants - Non Statutory - Current - Other,Business Group - Advanced Manufacturing Industries,ONE NORTH EAST,996549,162059.23
"Department for Business, Innovation and Skills","Department for Business, Innovation and Skills",24/05/10,Computer Equipment - Clearing,Finance & Commercial Group - Information and Workplace Strategies,BIRD & BIRD,995550,-6285.075
"Department for Business, Innovation and Skills","Department for Business, Innovation and Skills",24/05/10,Computer Equipment - Clearing,Finance & Commercial Group - Information and Workplace Strategies,BIRD & BIRD,995550,5275.1625
"Department for Business, Innovation and Skills","Department for Business, Innovation and Skills",24/05/10,Computer Equipment - Clearing,Finance & Commercial Group - Information and Workplace Strategies,BIRD & BIRD,995550,6284.4875
"Department for Business, Innovation and Skills","Department for Business, Innovation and Skills",24/05/10,Computer Equipment - Clearing,Finance & Commercial Group - Information and Workplace Strategies,BIRD & BIRD,995550,6285.075
"Department for Business, Innovation and Skills","Department for Business, Innovation and Skills",24/05/10,Outsourced Technical Support (Programme),SCIENCE & RESEARCH GROUP - UK Space Agency,DR GORDON KEYTE,996586,900
"Department for Business, Innovation and Skills","Department for Business, Innovation and Skills",24/05/10,Outsourced Technical Support (Programme),SCIENCE & RESEARCH GROUP - UK Space Agency,MINISTRY OF DEFENCE,996627,8964.91
"Department for Business, Innovation and Skills","Department for Business, Innovation and Skills",24/05/10,Outsourced Technical Support (Programme),SCIENCE & RESEARCH GROUP - UK Space Agency,MINISTRY OF DEFENCE,996631,9125.29
"Department for Business, Innovation and Skills","Department for Business, Innovation and Skills",24/05/10,Criminal Law and Prosecution Work,"Legal, People & Communications Group - Legal",REBECCA HIRST,996410,631.5625
"Department for Business, Innovation and Skills","Department for Business, Innovation and Skills",24/05/10,Criminal Law and Prosecution Work,"Legal, People & Communications Group - Legal",GRANT THORNTON UK LLP,996431,1092.75
"Department for Business, Innovation and Skills","Department for Business, Innovation and Skills",24/05/10,On-Line Databases,Universities and Skills Group - USG Admin,UNIVERSITIES AND COLLEGES ADMISSIONS SERVICE (UCAS),996646,7200
"Department for Business, Innovation and Skills","Department for Business, Innovation and Skills",24/05/10,Mobile Line Rental,Ministerial and Parliamentary Support Team - Ministerial and Parliamentary Support Team,VODAFONE LTD,996637,-701.8105
"Department for Business, Innovation and Skills","Department for Business, Innovation and Skills",24/05/10,Mobile Line Rental,Ministerial and Parliamentary Support Team - Ministerial and Parliamentary Support Team,VODAFONE LTD,996637,-8
"Department for Business, Innovation and Skills","Department for Business, Innovation and Skills",24/05/10,Mobile Line Rental,Ministerial and Parliamentary Support Team - Ministerial and Parliamentary Support Team,VODAFONE LTD,996637,701.8105
"Department for Business, Innovation and Skills","Department for Business, Innovation and Skills",24/05/10,Mobile Line Rental,Ministerial and Parliamentary Support Team - Ministerial and Parliamentary Support Team,VODAFONE LTD,996637,717.06725
"Department for Business, Innovation and Skills","Department for Business, Innovation and Skills",24/05/10,Hire of Agency Staff (Professional/Management),"Legal, People & Communications Group - Communications Directorate",XCHANGETEAM GROUP LTD,996603,1052.50625
"Department for Business, Innovation and Skills","Department for Business, Innovation and Skills",24/05/10,ICT Maintenance & Upkeep,Finance & Commercial Group - Information and Workplace Strategies,BADENOCH AND CLARK LTD,996402,2000
"Department for Business, Innovation and Skills","Department for Business, Innovation and Skills",24/05/10,Accommodation Rentals,Finance & Commercial Group - Information and Workplace Strategies,CB RICHARD ELLIS,996412,44000
"Department for Business, Innovation and Skills","Department for Business, Innovation and Skills",24/05/10,Service Charges,Finance & Commercial Group - Information and Workplace Strategies,CB RICHARD ELLIS,996412,6682.5
"Department for Business, Innovation and Skills","Department for Business, Innovation and Skills",24/05/10,Maintenance,Finance & Commercial Group - Information and Workplace Strategies,COFELY LTD,996620,1062
"Department for Business, Innovation and Skills","Department for Business, Innovation and Skills",24/05/10,Maintenance,Finance & Commercial Group - Information and Workplace Strategies,COFELY LTD,996634,2858.3
"Department for Business, Innovation and Skills","Department for Business, Innovation and Skills",24/05/10,Maintenance,Finance & Commercial Group - Information and Workplace Strategies,COFELY LTD,996633,6448
"Department for Business, Innovation and Skills","Department for Business, Innovation and Skills",24/05/10,Maintenance,Finance & Commercial Group - Information and Workplace Strategies,COFELY LTD,996628,9245
"Department for Business, Innovation and Skills","Department for Business, Innovation and Skills",24/05/10,Standard Desktop Plus Service (PFI),Finance & Commercial Group - Information and Workplace Strategies,DATA INTEGRATION LTD,996361,4405
"Department for Business, Innovation and Skills","Department for Business, Innovation and Skills",24/05/10,ICT Maintenance & Upkeep,Finance & Commercial Group - Information and Workplace Strategies,ELAN COMPUTING LTD,996193,9261.35
"Department for Business, Innovation and Skills","Department for Business, Innovation and Skills",24/05/10,ICT Maintenance & Upkeep (PFI),Finance & Commercial Group - Information and Workplace Strategies,FUJITSU SERVICES LTD,996640,70000
"Department for Business, Innovation and Skills","Department for Business, Innovation and Skills",24/05/10,Payroll Services,"Legal, People & Communications Group - HRCM - Human Resources and Change Management Directorate",LOGICA UK LTD,996524,3441.86
"Department for Business, Innovation and Skills","Department for Business, Innovation and Skills",24/05/10,ADP Training,"Legal, People & Communications Group - HRCM - Human Resources and Change Management Directorate",NATIONAL SCHOOL OF GOVERNMENT (CMPS),996479,1620
"Department for Business, Innovation and Skills","Department for Business, Innovation and Skills",24/05/10,ADP Training,"Legal, People & Communications Group - HRCM - Human Resources and Change Management Directorate",NATIONAL SCHOOL OF GOVERNMENT (CMPS),996478,1620
"Department for Business, Innovation and Skills","Department for Business, Innovation and Skills",24/05/10,ADP Training,"Legal, People & Communications Group - HRCM - Human Resources and Change Management Directorate",NATIONAL SCHOOL OF GOVERNMENT (CMPS),996477,1620
"Department for Business, Innovation and Skills","Department for Business, Innovation and Skills",24/05/10,ADP Training,"Legal, People & Communications Group - HRCM - Human Resources and Change Management Directorate",NATIONAL SCHOOL OF GOVERNMENT (CMPS),996475,1620
"Department for Business, Innovation and Skills","Department for Business, Innovation and Skills",24/05/10,ADP Training,"Legal, People & Communications Group - HRCM - Human Resources and Change Management Directorate",NATIONAL SCHOOL OF GOVERNMENT (CMPS),996474,1620
"Department for Business, Innovation and Skills","Department for Business, Innovation and Skills",24/05/10,ADP Training,"Legal, People & Communications Group - HRCM - Human Resources and Change Management Directorate",NATIONAL SCHOOL OF GOVERNMENT (CMPS),996473,1620
"Department for Business, Innovation and Skills","Department for Business, Innovation and Skills",24/05/10,ADP Training,"Legal, People & Communications Group - HRCM - Human Resources and Change Management Directorate",NATIONAL SCHOOL OF GOVERNMENT (CMPS),996674,21818
"Department for Business, Innovation and Skills","Department for Business, Innovation and Skills",24/05/10,ICT Maintenance & Upkeep (PFI),Finance & Commercial Group - Information and Workplace Strategies,PARITY RESOURCES LTD,996198,3813.909
"Department for Business, Innovation and Skills","Department for Business, Innovation and Skills",24/05/10,ICT Business Specific Application Services,Finance & Commercial Group - Information and Workplace Strategies,PARITY RESOURCES LTD,996641,7198.77
"Department for Business, Innovation and Skills","Department for Business, Innovation and Skills",24/05/10,ICT Business Specific Application Services,Finance & Commercial Group - Information and Workplace Strategies,PARITY RESOURCES LTD,996629,14432.04
"Department for Business, Innovation and Skills","Department for Business, Innovation and Skills",24/05/10,ICT Maintenance & Upkeep,Finance & Commercial Group - Information and Workplace Strategies,PARITY RESOURCES LTD,996197,5736
"Department for Business, Innovation and Skills","Department for Business, Innovation and Skills",24/05/10,Grants - Non Statutory - Current - Other,Business Group - Life Sciences,PROF. DR. MED. GEORG SCHETT,996306,750
"Department for Business, Innovation and Skills","Department for Business, Innovation and Skills",24/05/10,Purchase of  Advertising and Publicity (Programme),SCIENCE & RESEARCH GROUP - RESEARCH BASE,COI COMMUNICATIONS,996548,3250
"Department for Business, Innovation and Skills","Department for Business, Innovation and Skills",24/05/10,Purchase of  Advertising and Publicity (Programme),SCIENCE & RESEARCH GROUP - RESEARCH BASE,COI COMMUNICATIONS,996546,5526
"Department for Business, Innovation and Skills","Department for Business, Innovation and Skills",24/05/10,Air Fares  - Overseas (Programme),SCIENCE & RESEARCH GROUP - RESEARCH BASE,"Personal Expense, Name Witheld",10269517,1300
"Department for Business, Innovation and Skills","Department for Business, Innovation and Skills",24/05/10,Purchase of Completed Research,Universities and Skills Group - Skills Directorate,INTERNATIONAL GRADUATE INSIGHT GROUP LTD,996526,16425
"Department for Business, Innovation and Skills","Department for Business, Innovation and Skills",24/05/10,Outsourced Programme Management Services,Universities and Skills Group - Further Education,ENTO LTD,996487,40200
"Department for Business, Innovation and Skills","Department for Business, Innovation and Skills",24/05/10,Grants - Statutory - Current - Other,Business Group - Advanced Manufacturing Industries,VEHICLE CERTIFICATION AGENCY,996608,46500
"Department for Business, Innovation and Skills","Department for Business, Innovation and Skills",25/05/10,Leased Buildings - Clearing,Finance & Commercial Group - Information and Workplace Strategies,OFFICE PROJECTS LTD,996734,3587.839
"Department for Business, Innovation and Skills","Department for Business, Innovation and Skills",25/05/10,Leased Buildings - Clearing,Finance & Commercial Group - Information and Workplace Strategies,OFFICE PROJECTS LTD,996732,12965.702
"Department for Business, Innovation and Skills","Department for Business, Innovation and Skills",25/05/10,Printing (Programme),SCIENCE & RESEARCH GROUP - UK Space Agency,H20 CREATIVE COMMUNICATIONS LTD,996652,-172.96
"Department for Business, Innovation and Skills","Department for Business, Innovation and Skills",25/05/10,Criminal Law and Prosecution Work,"Legal, People & Communications Group - Legal",BLACKFORDS LLP,996733,1683.10525
"Department for Business, Innovation and Skills","Department for Business, Innovation and Skills",25/05/10,Criminal Law and Prosecution Work,"Legal, People & Communications Group - Legal",DARBYS,996735,657.3185
"Department for Business, Innovation and Skills","Department for Business, Innovation and Skills",25/05/10,Criminal Law and Prosecution Work,"Legal, People & Communications Group - Legal",FABER & CO,996716,626.14575
"Department for Business, Innovation and Skills","Department for Business, Innovation and Skills",25/05/10,Criminal Law and Prosecution Work,"Legal, People & Communications Group - Legal",LUPTON FAWCETT,996738,8399.99275
"Department for Business, Innovation and Skills","Department for Business, Innovation and Skills",25/05/10,Criminal Law and Prosecution Work,"Legal, People & Communications Group - Legal",RICHARD BEYNON,996393,2122.095
"Department for Business, Innovation and Skills","Department for Business, Innovation and Skills",25/05/10,Economic Consultancy and Research,"Innovation, Enterprise & Better Regulation Executive - Innovation",ZZZZMICHAEL KING.,996685,6000
"Department for Business, Innovation and Skills","Department for Business, Innovation and Skills",25/05/10,Payments to Treasury Solicitors and Treasury Counsel,"Legal, People & Communications Group - Legal",THE TREASURY SOLICITORS DEPARTMENT,996739,4750
"Department for Business, Innovation and Skills","Department for Business, Innovation and Skills",25/05/10,Mileage Allowances,Fair Markets Group Summary - ECO,"Personal Expense, Name Witheld",10269560,663.6
"Department for Business, Innovation and Skills","Department for Business, Innovation and Skills",25/05/10,Hotels Overseas,SCIENCE & RESEARCH GROUP - UK Space Agency,"Personal Expense, Name Witheld",10269553,663.21
"Department for Business, Innovation and Skills","Department for Business, Innovation and Skills",25/05/10,External Training,Strategy Group - Strategy Directorate,"Personal Expense, Name Witheld",10269578,800
"Department for Business, Innovation and Skills","Department for Business, Innovation and Skills",25/05/10,Technical Advice / Services & Support,Business Group - Advanced Manufacturing Industries,PROF NICK CUMPSTY,996727,4372.44
"Department for Business, Innovation and Skills","Department for Business, Innovation and Skills",25/05/10,External Training,Universities and Skills Group - Higher Education,PROFESSIONAL LANGUAGE SOLUTIONS LTD,996725,-144
"Department for Business, Innovation and Skills","Department for Business, Innovation and Skills",25/05/10,Hire of Agency Staff (Clerical/Secretariat/Other),Ministerial and Parliamentary Support Team - Ministerial and Parliamentary Support Team,Reed Personnel Services Ltd,996687,563.28325
"Department for Business, Innovation and Skills","Department for Business, Innovation and Skills",25/05/10,External Training,Business Group - Business Competitiveness - Secretariat/GRU,SDLC SOLUTIONS LIMITED,996588,1288
"Department for Business, Innovation and Skills","Department for Business, Innovation and Skills",25/05/10,Economic Consultancy & Research,GOVERNMENT OFFICE FOR SCIENCE - GOVERNMENT OFFICE FOR SCIENCE,TRIBAL CONSULTING LTD,996718,6377
"Department for Business, Innovation and Skills","Department for Business, Innovation and Skills",25/05/10,On-Line Databases,Universities and Skills Group - USG Admin,UNIVERSITIES AND COLLEGES ADMISSIONS SERVICE (UCAS),996649,7200
"Department for Business, Innovation and Skills","Department for Business, Innovation and Skills",25/05/10,Maintenance,Finance & Commercial Group - Information and Workplace Strategies,APEX LIFT AND ESCALATOR ENGINEERS LTD,996723,2279
"Department for Business, Innovation and Skills","Department for Business, Innovation and Skills",25/05/10,ICT Maintenance & Upkeep,Finance & Commercial Group - Information and Workplace Strategies,BROOK STREET (UK) LTD,996460,623.784
"Department for Business, Innovation and Skills","Department for Business, Innovation and Skills",25/05/10,Gas,Finance & Commercial Group - Information and Workplace Strategies,CORONA ENERGY,996709,-4722.4895
"Department for Business, Innovation and Skills","Department for Business, Innovation and Skills",25/05/10,Gas,Finance & Commercial Group - Information and Workplace Strategies,CORONA ENERGY,996722,1110.29275
"Department for Business, Innovation and Skills","Department for Business, Innovation and Skills",25/05/10,Gas,Finance & Commercial Group - Information and Workplace Strategies,CORONA ENERGY,996711,1867.733
"Department for Business, Innovation and Skills","Department for Business, Innovation and Skills",25/05/10,Gas,Finance & Commercial Group - Information and Workplace Strategies,CORONA ENERGY,996709,2909.94625
"Department for Business, Innovation and Skills","Department for Business, Innovation and Skills",25/05/10,Gas,Finance & Commercial Group - Information and Workplace Strategies,CORONA ENERGY,996707,3123.65525
"Department for Business, Innovation and Skills","Department for Business, Innovation and Skills",25/05/10,Gas,Finance & Commercial Group - Information and Workplace Strategies,CORONA ENERGY,996714,4722.4895
"Department for Business, Innovation and Skills","Department for Business, Innovation and Skills",25/05/10,Gas,Finance & Commercial Group - Information and Workplace Strategies,CORONA ENERGY,996709,4722.4895
"Department for Business, Innovation and Skills","Department for Business, Innovation and Skills",25/05/10,Telecommunications,Finance & Commercial Group - Information and Workplace Strategies,DAISY COMMUNICATIONS LTD,996632,-270.44975
"Department for Business, Innovation and Skills","Department for Business, Innovation and Skills",25/05/10,Maintenance,Finance & Commercial Group - Information and Workplace Strategies,F.A.C.E. ENTERPRISES LTD,996656,631.16
"Department for Business, Innovation and Skills","Department for Business, Innovation and Skills",25/05/10,Maintenance,Finance & Commercial Group - Information and Workplace Strategies,OFFICE PROJECTS LTD,996730,6700
"Department for Business, Innovation and Skills","Department for Business, Innovation and Skills",25/05/10,Security Policy Service,Finance & Commercial Group - Information and Workplace Strategies,PITNEY BOWES LTD,996142,6444
"Department for Business, Innovation and Skills","Department for Business, Innovation and Skills",25/05/10,ICT Maintenance & Upkeep,Finance & Commercial Group - Information and Workplace Strategies,RUSSAM GMS LTD,996672,2756.25
"Department for Business, Innovation and Skills","Department for Business, Innovation and Skills",25/05/10,ICT Infrastructure Specific Service,Finance & Commercial Group - Information and Workplace Strategies,XMA LTD,996600,502.37125
"Department for Business, Innovation and Skills","Department for Business, Innovation and Skills",25/05/10,Other IT Costs (Programme),Fair Markets Group Summary - Europe Directorate,SERCO LTD,990338,452140
"Department for Business, Innovation and Skills","Department for Business, Innovation and Skills",25/05/10,Conference and Exhibition Services (Programme),"Business Group - Solutions for Business, Low Carbon & Services",KOELNMESSE SERVICE GMBH,996318,872.59215
"Department for Business, Innovation and Skills","Department for Business, Innovation and Skills",25/05/10,Research & Development Expenditure (Programme),GOVERNMENT OFFICE FOR SCIENCE - GOVERNMENT OFFICE FOR SCIENCE,TRIBAL CONSULTING LTD,996721,8610.8
"Department for Business, Innovation and Skills","Department for Business, Innovation and Skills",26/05/10,Technical Support,Business Group - Advanced Manufacturing Industries,ELIZABETH BRIGNALL,996807,8812.5
"Department for Business, Innovation and Skills","Department for Business, Innovation and Skills",26/05/10,Computer Equipment - Clearing,Finance & Commercial Group - Information and Workplace Strategies,BROOK STREET (UK) LTD,996457,591.29525
"Department for Business, Innovation and Skills","Department for Business, Innovation and Skills",26/05/10,Computer Equipment - Clearing,Finance & Commercial Group - Information and Workplace Strategies,BROOK STREET (UK) LTD,996458,636.20375
"Department for Business, Innovation and Skills","Department for Business, Innovation and Skills",26/05/10,UK Advances,Corporate Balance,"Personal Expense, Name Witheld",10269652,-250
"Department for Business, Innovation and Skills","Department for Business, Innovation and Skills",26/05/10,Overseas Advances,Corporate Balance,"Personal Expense, Name Witheld",10269621,-330
"Department for Business, Innovation and Skills","Department for Business, Innovation and Skills",26/05/10,BIS Tax Deductions,Corporate Balance,"Personal Expense, Name Witheld",10269593,-66.8
"Department for Business, Innovation and Skills","Department for Business, Innovation and Skills",26/05/10,BIS Tax Deductions,Corporate Balance,"Personal Expense, Name Witheld",10269594,-54.11
"Department for Business, Innovation and Skills","Department for Business, Innovation and Skills",26/05/10,BIS Tax Deductions,Corporate Balance,"Personal Expense, Name Witheld",10269607,-48.2
"Department for Business, Innovation and Skills","Department for Business, Innovation and Skills",26/05/10,BIS Tax Deductions,Corporate Balance,"Personal Expense, Name Witheld",10269605,-45.99
"Department for Business, Innovation and Skills","Department for Business, Innovation and Skills",26/05/10,BIS Tax Deductions,Corporate Balance,"Personal Expense, Name Witheld",10269592,-38.92
"Department for Business, Innovation and Skills","Department for Business, Innovation and Skills",26/05/10,BIS Tax Deductions,Corporate Balance,"Personal Expense, Name Witheld",10269606,-37.72
"Department for Business, Innovation and Skills","Department for Business, Innovation and Skills",26/05/10,BIS Tax Deductions,Corporate Balance,"Personal Expense, Name Witheld",10269603,-37.43
"Department for Business, Innovation and Skills","Department for Business, Innovation and Skills",26/05/10,BIS Tax Deductions,Corporate Balance,"Personal Expense, Name Witheld",10269597,-37.28
"Department for Business, Innovation and Skills","Department for Business, Innovation and Skills",26/05/10,BIS Tax Deductions,Corporate Balance,"Personal Expense, Name Witheld",10269590,-33.55
"Department for Business, Innovation and Skills","Department for Business, Innovation and Skills",26/05/10,BIS Tax Deductions,Corporate Balance,"Personal Expense, Name Witheld",10269598,-31
"Department for Business, Innovation and Skills","Department for Business, Innovation and Skills",26/05/10,BIS Tax Deductions,Corporate Balance,"Personal Expense, Name Witheld",10269591,-30.92
"Department for Business, Innovation and Skills","Department for Business, Innovation and Skills",26/05/10,BIS Tax Deductions,Corporate Balance,"Personal Expense, Name Witheld",10269587,-28.68
"Department for Business, Innovation and Skills","Department for Business, Innovation and Skills",26/05/10,BIS Tax Deductions,Corporate Balance,"Personal Expense, Name Witheld",10269588,-19.16
"Department for Business, Innovation and Skills","Department for Business, Innovation and Skills",26/05/10,BIS Tax Deductions,Corporate Balance,"Personal Expense, Name Witheld",10269600,-13.45
"Department for Business, Innovation and Skills","Department for Business, Innovation and Skills",26/05/10,BIS Tax Deductions,Corporate Balance,"Personal Expense, Name Witheld",10269602,-12.2
"Department for Business, Innovation and Skills","Department for Business, Innovation and Skills",26/05/10,BIS Tax Deductions,Corporate Balance,"Personal Expense, Name Witheld",10269609,-10
"Department for Business, Innovation and Skills","Department for Business, Innovation and Skills",26/05/10,BIS Tax Deductions,Corporate Balance,"Personal Expense, Name Witheld",10269608,-7.01
"Department for Business, Innovation and Skills","Department for Business, Innovation and Skills",26/05/10,Sponsorship Support,Business Group - Information Economy,INTELLECT,996796,14022.01
"Department for Business, Innovation and Skills","Department for Business, Innovation and Skills",26/05/10,Outsourced Technical Support (Programme),SCIENCE & RESEARCH GROUP - UK Space Agency,QINETIQ LTD,996553,2013.95
"Department for Business, Innovation and Skills","Department for Business, Innovation and Skills",26/05/10,Criminal Law and Prosecution Work,"Legal, People & Communications Group - Legal",CHRISTOPHER CONVEY,996774,955.557
"Department for Business, Innovation and Skills","Department for Business, Innovation and Skills",26/05/10,Rates (Programme),Finance & Commercial Group - Information and Workplace Strategies,CROYDON COUNCIL,996858,2314.74
"Department for Business, Innovation and Skills","Department for Business, Innovation and Skills",26/05/10,Hotels,Office of Manpower Economics - Office of Manpower Economics,"Personal Expense, Name Witheld",10269616,600
"Department for Business, Innovation and Skills","Department for Business, Innovation and Skills",26/05/10,Hotels Overseas,Business Group - Advanced Manufacturing Industries,"Personal Expense, Name Witheld",10269621,890.26
"Department for Business, Innovation and Skills","Department for Business, Innovation and Skills",26/05/10,Press Cutting Services,Business Group - Advanced Manufacturing Industries,REED BUSINESS INFORMATION LTD,996822,2910
"Department for Business, Innovation and Skills","Department for Business, Innovation and Skills",26/05/10,Hire of Office Equipment,Fair Markets Group Summary - Consumer and Competition Policy,RICOH UK LTD,996494,-352.06
"Department for Business, Innovation and Skills","Department for Business, Innovation and Skills",26/05/10,External Training,"Innovation, Enterprise & Better Regulation Executive - Innovation",THE LANCE EDYNBRY PARTNERSHIP,996767,1068
"Department for Business, Innovation and Skills","Department for Business, Innovation and Skills",26/05/10,External Training,"Innovation, Enterprise & Better Regulation Executive - Innovation",THE LANCE EDYNBRY PARTNERSHIP,996769,1068
"Department for Business, Innovation and Skills","Department for Business, Innovation and Skills",26/05/10,Conference and Exhibition Services,Business Group - Advanced Manufacturing Industries,THE LANCE EDYNBRY PARTNERSHIP,996768,1068
"Department for Business, Innovation and Skills","Department for Business, Innovation and Skills",26/05/10,External Training,"Legal, People & Communications Group - Priority Projects Drectorate",THE RIGHT ADDRESS LTD,996826,5875
"Department for Business, Innovation and Skills","Department for Business, Innovation and Skills",26/05/10,ICT Maintenance & Upkeep,Finance & Commercial Group - Information and Workplace Strategies,BADENOCH AND CLARK LTD,996661,1600
"Department for Business, Innovation and Skills","Department for Business, Innovation and Skills",26/05/10,Maintenance,Finance & Commercial Group - Information and Workplace Strategies,COFELY LTD,996841,635.59
"Department for Business, Innovation and Skills","Department for Business, Innovation and Skills",26/05/10,Maintenance,Finance & Commercial Group - Information and Workplace Strategies,COFELY LTD,996845,2775.35
"Department for Business, Innovation and Skills","Department for Business, Innovation and Skills",26/05/10,Maintenance,Finance & Commercial Group - Information and Workplace Strategies,COFELY LTD,996841,3447.59
"Department for Business, Innovation and Skills","Department for Business, Innovation and Skills",26/05/10,InfoSource Desktop Information and Research Services,Finance & Commercial Group - Information and Workplace Strategies,EBSCO INFORMATION SERVICES,996834,4125
"Department for Business, Innovation and Skills","Department for Business, Innovation and Skills",26/05/10,ICT Infrastructure Specific Service,Finance & Commercial Group - Information and Workplace Strategies,EDUSERV TECHNOLOGIES LTD,996842,780
"Department for Business, Innovation and Skills","Department for Business, Innovation and Skills",26/05/10,ICT Infrastructure Specific Service,Finance & Commercial Group - Information and Workplace Strategies,EDUSERV TECHNOLOGIES LTD,996852,780
"Department for Business, Innovation and Skills","Department for Business, Innovation and Skills",26/05/10,Payroll Services,"Legal, People & Communications Group - HRCM - Human Resources and Change Management Directorate",LOGICA UK LTD,996817,6404.26
"Department for Business, Innovation and Skills","Department for Business, Innovation and Skills",26/05/10,Payroll Services,"Legal, People & Communications Group - HRCM - Human Resources and Change Management Directorate",LOGICA UK LTD,996819,8912.76
"Department for Business, Innovation and Skills","Department for Business, Innovation and Skills",26/05/10,Payroll Services,"Legal, People & Communications Group - HRCM - Human Resources and Change Management Directorate",LOGICA UK LTD,996818,11172.01
"Department for Business, Innovation and Skills","Department for Business, Innovation and Skills",26/05/10,Maintenance,Finance & Commercial Group - Information and Workplace Strategies,MITIE TECHNICAL FACILITIES MANAGEMENT LTD,996865,40000
"Department for Business, Innovation and Skills","Department for Business, Innovation and Skills",26/05/10,ICT Maintenance & Upkeep,Finance & Commercial Group - Information and Workplace Strategies,PARITY RESOURCES LTD,996655,520.0785
"Department for Business, Innovation and Skills","Department for Business, Innovation and Skills",26/05/10,Flexible Computing Service,Finance & Commercial Group - Information and Workplace Strategies,VODAFONE LTD,979892,-9329.39
"Department for Business, Innovation and Skills","Department for Business, Innovation and Skills",26/05/10,ICT Infrastructure Specific Service,Finance & Commercial Group - Information and Workplace Strategies,XMA LTD,996870,1912.9
"Department for Business, Innovation and Skills","Department for Business, Innovation and Skills",26/05/10,Media and Design Services,Business Group - Information Economy,ANDREWS & ARNOLD LTD,996791,1510.5
"Department for Business, Innovation and Skills","Department for Business, Innovation and Skills",26/05/10,Economic Consultancy and Research,"Innovation, Enterprise & Better Regulation Executive - Innovation",INNOVATIVE ECONOMICS LTD,996802,1900
"Department for Business, Innovation and Skills","Department for Business, Innovation and Skills",26/05/10,Economic Consultancy and Research,"Innovation, Enterprise & Better Regulation Executive - Innovation",INNOVATIVE ECONOMICS LTD,996802,10100
"Department for Business, Innovation and Skills","Department for Business, Innovation and Skills",26/05/10,Grants - Statutory - Current - Other,SCIENCE & RESEARCH GROUP - RESEARCH BASE,NATURAL ENVIRONMENT RESEARCH COUNCIL,996900,64178
"Department for Business, Innovation and Skills","Department for Business, Innovation and Skills",26/05/10,Catering Services (Programme),GOVERNMENT OFFICE FOR SCIENCE - GOVERNMENT OFFICE FOR SCIENCE,CITY INN WESTMINSTER,996853,717.34
"Department for Business, Innovation and Skills","Department for Business, Innovation and Skills",26/05/10,Catering Services (Programme),GOVERNMENT OFFICE FOR SCIENCE - GOVERNMENT OFFICE FOR SCIENCE,CITY INN WESTMINSTER,996853,2054.66
"Department for Business, Innovation and Skills","Department for Business, Innovation and Skills",26/05/10,Air Fares  - Overseas (Programme),SCIENCE & RESEARCH GROUP - RESEARCH BASE,"Personal Expense, Name Witheld",10269523,664.95
"Department for Business, Innovation and Skills","Department for Business, Innovation and Skills",26/05/10,Grants - Statutory - Current - Other,SCIENCE & RESEARCH GROUP - RESEARCH BASE,UNIVERSITY OF LIVERPOOL,996821,1250
"Department for Business, Innovation and Skills","Department for Business, Innovation and Skills",26/05/10,Purchase of Completed Research,Business Group - Advanced Manufacturing Industries,ENTEC UK LTD,996798,3964.38
"Department for Business, Innovation and Skills","Department for Business, Innovation and Skills",26/05/10,Grant in Aid - Current -Other,Shareholder Executive - Shareholder Executive,UKAEA,996574,2020547
"Department for Business, Innovation and Skills","Department for Business, Innovation and Skills",26/05/10,Grant in Aid - Current -Other,Shareholder Executive - Shareholder Executive,UKAEA,996574,-2020547
"Department for Business, Innovation and Skills","Department for Business, Innovation and Skills",26/05/10,Grant in Aid - Current -Other,Shareholder Executive - Shareholder Executive,UKAEA,996574,2020547
"Department for Business, Innovation and Skills","Department for Business, Innovation and Skills",26/05/10,Grants - Non Statutory - Current - Other,Fair Markets Group Summary - Employment Relations,UNISON,996823,19535
"Department for Business, Innovation and Skills","Department for Business, Innovation and Skills",26/05/10,DO NOT USE Consultancy (Programme),Universities and Skills Group - Further Education & Skills Investment,CRAVEN CONSULTANCY LTD,996801,1968.8
"Department for Business, Innovation and Skills","Department for Business, Innovation and Skills",26/05/10,Taxis (Programme),Universities and Skills Group - Government Skills,PREMIER CARS (CARDIFF) LTD,996805,-28.905
"Department for Business, Innovation and Skills","Department for Business, Innovation and Skills",26/05/10,Grants - Statutory - Current - Other,Business Group - Advanced Manufacturing Industries,BRITISH STANDARDS INSTITUTION (BSI),996516,2350
"Department for Business, Innovation and Skills","Department for Business, Innovation and Skills",27/05/10,Grants - Non Statutory - Current - Other,Business Group - Information Economy,ONE NORTH EAST,996799,2819.56
"Department for Business, Innovation and Skills","Department for Business, Innovation and Skills",27/05/10,Grants - Non Statutory - Current - Other,Business Group - Information Economy,ONE NORTH EAST,996799,140629
"Department for Business, Innovation and Skills","Department for Business, Innovation and Skills",27/05/10,Capital Grants - Other,Business Group - Information Economy,ONE NORTH EAST,996799,-976216.65
"Department for Business, Innovation and Skills","Department for Business, Innovation and Skills",27/05/10,Capital Grants - Other,Business Group - Information Economy,ONE NORTH EAST,996799,976216.65
"Department for Business, Innovation and Skills","Department for Business, Innovation and Skills",27/05/10,Capital Grants - Other,Business Group - Information Economy,ONE NORTH EAST,996799,976216.65
"Department for Business, Innovation and Skills","Department for Business, Innovation and Skills",27/05/10,Payments to Expotel for Hotel Costs Contract,Finance & Commercial Group - Finance Group,EXPOTEL HOTEL RESERVATIONS LTD,996901,9647.549
"Department for Business, Innovation and Skills","Department for Business, Innovation and Skills",27/05/10,Computer Equipment - Clearing,Finance & Commercial Group - Information and Workplace Strategies,FUJITSU SERVICES LTD,996963,-7592.6385
"Department for Business, Innovation and Skills","Department for Business, Innovation and Skills",27/05/10,Computer Equipment - Clearing,Finance & Commercial Group - Information and Workplace Strategies,FUJITSU SERVICES LTD,996970,3880.743
"Department for Business, Innovation and Skills","Department for Business, Innovation and Skills",27/05/10,Computer Equipment - Clearing,Finance & Commercial Group - Information and Workplace Strategies,FUJITSU SERVICES LTD,996963,7406.31875
"Department for Business, Innovation and Skills","Department for Business, Innovation and Skills",27/05/10,Computer Equipment - Clearing,Finance & Commercial Group - Information and Workplace Strategies,FUJITSU SERVICES LTD,996963,7592.6385
"Department for Business, Innovation and Skills","Department for Business, Innovation and Skills",27/05/10,Computer Equipment - Clearing,Finance & Commercial Group - Information and Workplace Strategies,FUJITSU SERVICES LTD,996974,17294.78975
"Department for Business, Innovation and Skills","Department for Business, Innovation and Skills",27/05/10,Payments to Barclays for Carlson Wagonlit Travel Contract,Finance & Commercial Group - Finance Group,INITIAL CATERING SERVICES LTD T/A AUTOGRAPH,996898,1461.28875
"Department for Business, Innovation and Skills","Department for Business, Innovation and Skills",27/05/10,Outsourced Technical Support (Programme),SCIENCE & RESEARCH GROUP - UK Space Agency,EOCI,996948,625.62
"Department for Business, Innovation and Skills","Department for Business, Innovation and Skills",27/05/10,Outsourced Technical Support (Programme),SCIENCE & RESEARCH GROUP - UK Space Agency,PROFESSOR SIR ROY GOODE,996946,1016.06
"Department for Business, Innovation and Skills","Department for Business, Innovation and Skills",27/05/10,Additions - Enterprise Equity Investments,"Innovation, Enterprise & Better Regulation Executive - Enterprise Directorate",BERR EQUITY INVESTMENT PROGRAMMES (CAPITAL),996956,540000
"Department for Business, Innovation and Skills","Department for Business, Innovation and Skills",27/05/10,Outsourced Programme Management Services,Universities and Skills Group - Further Education,CAPGEMINI UK plc,996839,5000
"Department for Business, Innovation and Skills","Department for Business, Innovation and Skills",27/05/10,Outsourced Programme Management Services,Universities and Skills Group - Further Education,CAPGEMINI UK plc,996838,113273.13
"Department for Business, Innovation and Skills","Department for Business, Innovation and Skills",27/05/10,Buildings Insurance (Programme),Finance & Commercial Group - Information and Workplace Strategies,LONGFIELD VENTURES LTD,996892,4582.5
"Department for Business, Innovation and Skills","Department for Business, Innovation and Skills",27/05/10,Conference and Exhibition Services (Programme),Fair Markets Group Summary - ECO,HILTON BELFAST,996484,1042.55
"Department for Business, Innovation and Skills","Department for Business, Innovation and Skills",27/05/10,Hotels,Office of Manpower Economics - Office of Manpower Economics,"Personal Expense, Name Witheld",10269704,610
"Department for Business, Innovation and Skills","Department for Business, Innovation and Skills",27/05/10,Hotels,Fair Markets Group Summary - Europe Directorate,"Personal Expense, Name Witheld",10269693,629.3
"Department for Business, Innovation and Skills","Department for Business, Innovation and Skills",27/05/10,Hotels Overseas,Business Group - Information Economy,"Personal Expense, Name Witheld",10269717,760.76
"Department for Business, Innovation and Skills","Department for Business, Innovation and Skills",27/05/10,Dilapidations,Finance & Commercial Group - Information and Workplace Strategies,AGM INTERIORS LTD,996833,1500
"Department for Business, Innovation and Skills","Department for Business, Innovation and Skills",27/05/10,Other Staff Costs,"Legal, People & Communications Group - HRCM - Human Resources and Change Management Directorate",DAREN FLETCHER,996538,800
"Department for Business, Innovation and Skills","Department for Business, Innovation and Skills",27/05/10,Standard Desktop Plus Service (PFI),Finance & Commercial Group - Information and Workplace Strategies,FUJITSU SERVICES LTD,995499,-7.97
"Department for Business, Innovation and Skills","Department for Business, Innovation and Skills",27/05/10,Standard Desktop Plus Service (PFI),Finance & Commercial Group - Information and Workplace Strategies,FUJITSU SERVICES LTD,995504,-7.97
"Department for Business, Innovation and Skills","Department for Business, Innovation and Skills",27/05/10,Standard Desktop Plus Service (PFI),Finance & Commercial Group - Information and Workplace Strategies,FUJITSU SERVICES LTD,995500,-7.97
"Department for Business, Innovation and Skills","Department for Business, Innovation and Skills",27/05/10,Standard Desktop Plus Service (PFI),Finance & Commercial Group - Information and Workplace Strategies,FUJITSU SERVICES LTD,995503,-7.97
"Department for Business, Innovation and Skills","Department for Business, Innovation and Skills",27/05/10,Standard Desktop Plus Service (PFI),Finance & Commercial Group - Information and Workplace Strategies,FUJITSU SERVICES LTD,995502,-7.97
"Department for Business, Innovation and Skills","Department for Business, Innovation and Skills",27/05/10,Standard Desktop Plus Service (PFI),Finance & Commercial Group - Information and Workplace Strategies,FUJITSU SERVICES LTD,995501,-7.97
"Department for Business, Innovation and Skills","Department for Business, Innovation and Skills",27/05/10,Standard Desktop Plus Service (PFI),Finance & Commercial Group - Information and Workplace Strategies,FUJITSU SERVICES LTD,995501,-7.97
"Department for Business, Innovation and Skills","Department for Business, Innovation and Skills",27/05/10,Hire of Conference Facilities,Finance & Commercial Group - Information and Workplace Strategies,ISS FACILITY SERVICES LTD T/A ISS PEGASUS SECURITY,996902,660.96
"Department for Business, Innovation and Skills","Department for Business, Innovation and Skills",27/05/10,Other Staff Costs,"Legal, People & Communications Group - HRCM - Human Resources and Change Management Directorate",MINERVA SSA,996459,783
"Department for Business, Innovation and Skills","Department for Business, Innovation and Skills",27/05/10,Air Fares  - Overseas (Programme),SCIENCE & RESEARCH GROUP - RESEARCH BASE,"Personal Expense, Name Witheld",10269669,582.92
"Department for Business, Innovation and Skills","Department for Business, Innovation and Skills",27/05/10,Air Fares  - Overseas (Programme),SCIENCE & RESEARCH GROUP - RESEARCH BASE,"Personal Expense, Name Witheld",10269666,844.8
"Department for Business, Innovation and Skills","Department for Business, Innovation and Skills",27/05/10,Project Management Costs (Programme),SCIENCE & RESEARCH GROUP - RESEARCH BASE,THE UNIVERSITY OF NOTTINGHAM,996939,7199.21
"Department for Business, Innovation and Skills","Department for Business, Innovation and Skills",27/05/10,Independent Experts,Business Group - Advanced Manufacturing Industries,A C DICKER T/A GLEVERS,996919,4166.66
"Department for Business, Innovation and Skills","Department for Business, Innovation and Skills",27/05/10,Outsourced Programme Management Services,Universities and Skills Group - Higher Education,STEP ENTERPRISE LTD,996950,58750
"Department for Business, Innovation and Skills","Department for Business, Innovation and Skills",27/05/10,Grants - Non Statutory - Current - Other,Universities and Skills Group - Further Education,HIGHER EDUCATION FUNDING COUNCIL FOR ENGLAND,996961,2217641
"Department for Business, Innovation and Skills","Department for Business, Innovation and Skills",28/05/10,Financial Advice and Services,Business Group - Advanced Manufacturing Industries,ERNST & YOUNG LLP,997114,7343.75
"Department for Business, Innovation and Skills","Department for Business, Innovation and Skills",28/05/10,Financial Advice and Services,Business Group - Advanced Manufacturing Industries,INTERIM PERFORMERS LTD,996771,-3047.5
"Department for Business, Innovation and Skills","Department for Business, Innovation and Skills",28/05/10,Financial Advice and Services,Business Group - Advanced Manufacturing Industries,INTERIM PERFORMERS LTD,996771,3047.5
"Department for Business, Innovation and Skills","Department for Business, Innovation and Skills",28/05/10,Financial Advice and Services,Business Group - Advanced Manufacturing Industries,INTERIM PERFORMERS LTD,996771,3113.75
"Department for Business, Innovation and Skills","Department for Business, Innovation and Skills",28/05/10,Payments to Barclays for Carlson Wagonlit Travel Contract,Finance & Commercial Group - Finance Group,BANNER BUSINESS SERVICES LTD,997065,2483.49175
"Department for Business, Innovation and Skills","Department for Business, Innovation and Skills",28/05/10,Payments to Barclays for Carlson Wagonlit Travel Contract,Finance & Commercial Group - Finance Group,BANNER BUSINESS SERVICES LTD,997067,2566.3175
"Department for Business, Innovation and Skills","Department for Business, Innovation and Skills",28/05/10,Leased Buildings - Clearing,Finance & Commercial Group - Information and Workplace Strategies,M J FERGUSON LTD,997116,519.8435
"Department for Business, Innovation and Skills","Department for Business, Innovation and Skills",28/05/10,Leased Buildings - Clearing,Finance & Commercial Group - Information and Workplace Strategies,OFFICE PROJECTS LTD,997119,4857.25025
"Department for Business, Innovation and Skills","Department for Business, Innovation and Skills",28/05/10,Overseas Advances,Corporate Balance,"Personal Expense, Name Witheld",10269734,2038
"Department for Business, Innovation and Skills","Department for Business, Innovation and Skills",28/05/10,Leased Buildings - Clearing,Finance & Commercial Group - Information and Workplace Strategies,STOPPS LTD,997111,2259.525
"Department for Business, Innovation and Skills","Department for Business, Innovation and Skills",28/05/10,Leased Buildings - Clearing,Finance & Commercial Group - Information and Workplace Strategies,THE SCOTTISH GOVERNMENT,997144,275007.87
"Department for Business, Innovation and Skills","Department for Business, Innovation and Skills",28/05/10,Financial Advice and Services,"Innovation, Enterprise & Better Regulation Executive - Innovation",CAPITAL FOR ENTERPRISE LTD,996220,14659
"Department for Business, Innovation and Skills","Department for Business, Innovation and Skills",28/05/10,Criminal Law and Prosecution Work,"Legal, People & Communications Group - Legal",BOLITHO WAY,996964,857.80875
"Department for Business, Innovation and Skills","Department for Business, Innovation and Skills",28/05/10,Criminal Law and Prosecution Work,"Legal, People & Communications Group - Legal",ELVIN & CO,996985,1282.54775
"Department for Business, Innovation and Skills","Department for Business, Innovation and Skills",28/05/10,Criminal Law and Prosecution Work,"Legal, People & Communications Group - Legal",LUPTON FAWCETT,996986,1581.9025
"Department for Business, Innovation and Skills","Department for Business, Innovation and Skills",28/05/10,Criminal Law and Prosecution Work,"Legal, People & Communications Group - Legal",ALTIA SOLUTIONS LTD,997112,12455
"Department for Business, Innovation and Skills","Department for Business, Innovation and Skills",28/05/10,Other Training Costs (Programme),Fair Markets Group Summary - ECO,IMS LTD (INTEREXPORT MANAGEMENT SYSTEMS LTD),997064,-500
